{"text_format":"3","workbook":"xlsx","n_sheets":5,"sheets":["Unternehmerverzeichnis","Offertöffnungsprotokoll","Auswertung","Antrag","Bewertung"],"not_rendered":{"images":1,"defined_names":5},"read":"whole","date_system":"1900"}

{"sheet":"Unternehmerverzeichnis","index":0,"n_rows":57,"n_cols":18,"rows_kept":57,"merged":[[19,1,19,2],[20,1,20,2],[21,1,21,2],[22,1,22,2]]}
{"$rows_empty":8}
[null,"Planer- / Unternehmerverzeichnis bis 30 Anbieter",{"$nulls":8},1,{"$f":"VLOOKUP(K9,N11:O13,2,0)","v":"Bau"},null,null,2]
[]
[null,"Standort",{"$nulls":4},"ProjektleiterIn IMMO",{"$nulls":3},"Bau",null,null,1,"Bau",1,"Offenes Verfahren"]
[null,"Objekt/Projekt",{"$nulls":4},"Architekt / GU",{"$nulls":3},"Dienstleistung",null,null,2,"Dienstleistung",2,"Selektives Verfahren"]
[null,"ID-Nummer",{"$nulls":4},"Fachplaner",{"$nulls":3},"Lieferung",null,null,3,"Lieferung",3,"Einladungsverfahren"]
[{"$nulls":10},1,{"$f":"VLOOKUP(K14,P11:Q20,2,0)","v":"Offenes Verfahren"},null,1,2,4,"Freihändige Vergabe \"in Konkurrenz\""]
[null,"Auftragsart",{"$nulls":4},"BKP Nr.",{"$nulls":3},"Freihändige Vergabe",{"$nulls":4},5,"Freihändige Vergabe \"direkte Vergabe\""]
[null,"Verfahrensart",{"$nulls":4},"Arbeitsgattung",{"$nulls":3},"Einladungsverfahren",{"$nulls":4},6,"GATT/WTO Offenes Verfahren"]
[{"$nulls":10},"offenes Verfahren",{"$nulls":4},7,"GATT/WTO Selektives Verfahren"]
[{"$nulls":10},"selektives Verfahren",{"$nulls":4},8,"GATT/WTO Einladungsverfahren"]
[null,"Zuschlagskriterien",null,null,"Eignungskriterien",null,"KV original",{"$nulls":3},2,{"$nulls":4},9,"GATT/WTO Freihändige Vergabe \"in Konkurrenz\""]
[null,"Preis",{"$nulls":8},2,{"$f":"VLOOKUP(K20,N21:O22,2,0)","v":"NEIN"},null,1,2,10,"GATT/WTO Freihändige Vergabe \"direkte Vergabe\""]
[null,"Qualität",{"$nulls":8},"JA",null,null,1,"JA"]
[null,"Termin ",{"$nulls":8},"NEIN",null,null,2,"NEIN"]
[null,"Lernende"]
[null,"Total",null,{"$f":"SUM(L47+N47+P47+R47)","v":{"v":0.95,"d":"95%             "}},{"$nulls":6},11,null,5,null,5,null,2]
[{"$nulls":10},{"v":0,"d":"0%"},{"$f":"IF(K$24=1,0%,0)","v":{"v":0,"d":"0%"}},{"v":0,"d":"0%"},{"$f":"IF(M$24=1,0%,0)","v":{"v":0,"d":"0%"}},{"v":0,"d":"0%"},{"$f":"IF(O$24=1,0%,0)","v":{"v":0,"d":"0%"}},{"v":0,"d":"0%"},{"$f":"IF(Q$24=1,0%,0)","v":{"v":0,"d":"0%"}}]
[{"$nulls":10},{"v":0.05,"d":"5%"},{"$f":"IF(K$24=2,5%,0)","v":{"v":0,"d":"0%"}},{"v":0.05,"d":"5%"},{"$f":"IF(M$24=2,5%,0)","v":{"v":0,"d":"0%"}},{"v":0.05,"d":"5%"},{"$f":"IF(O$24=2,5%,0)","v":{"v":0,"d":"0%"}},{"v":0.05,"d":"5%"},{"$f":"IF(Q$24=2,5%,0)","v":{"v":0.05,"d":"5%"}}]
[null,null,"Anbieter Name",null,"Adresse","PLZ","Ort","Bemerkungen",null,null,{"v":0.1,"d":"10%"},{"$f":"IF(K$24=3,10%,0)","v":{"v":0,"d":"0%"}},{"v":0.1,"d":"10%"},{"$f":"IF(M$24=3,10%,0)","v":{"v":0,"d":"0%"}},{"v":0.1,"d":"10%"},{"$f":"IF(O$24=3,10%,0)","v":{"v":0,"d":"0%"}},{"v":0.1,"d":"10%"},{"$f":"IF(Q$24=3,10%,0)","v":{"v":0,"d":"0%"}}]
[null,{"v":1,"d":"01"},{"$nulls":8},{"v":0.15,"d":"15%"},{"$f":"IF(K$24=4,15%,0)","v":{"v":0,"d":"0%"}},{"v":0.15,"d":"15%"},{"$f":"IF(M$24=4,15%,0)","v":{"v":0,"d":"0%"}},{"v":0.15,"d":"15%"},{"$f":"IF(O$24=4,15%,0)","v":{"v":0,"d":"0%"}},{"v":0.15,"d":"15%"},{"$f":"IF(Q$24=4,15%,0)","v":{"v":0,"d":"0%"}}]
[null,{"v":2,"d":"02"},{"$nulls":8},{"v":0.2,"d":"20%"},{"$f":"IF(K$24=5,20%,0)","v":{"v":0,"d":"0%"}},{"v":0.2,"d":"20%"},{"$f":"IF(M$24=5,20%,0)","v":{"v":0.2,"d":"20%"}},{"v":0.2,"d":"20%"},{"$f":"IF(O$24=5,20%,0)","v":{"v":0.2,"d":"20%"}},{"v":0.2,"d":"20%"},{"$f":"IF(Q$24=5,20%,0)","v":{"v":0,"d":"0%"}}]
[null,{"v":3,"d":"03"},{"$nulls":8},{"v":0.25,"d":"25%"},{"$f":"IF(K$24=6,25%,0)","v":{"v":0,"d":"0%"}},{"v":0.25,"d":"25%"},{"$f":"IF(M$24=6,25%,0)","v":{"v":0,"d":"0%"}},{"v":0.25,"d":"25%"},{"$f":"IF(O$24=6,25%,0)","v":{"v":0,"d":"0%"}},{"v":0.25,"d":"25%"},{"$f":"IF(Q$24=6,25%,0)","v":{"v":0,"d":"0%"}}]
[null,{"v":4,"d":"04"},{"$nulls":8},{"v":0.3,"d":"30%"},{"$f":"IF(K$24=7,30%,0)","v":{"v":0,"d":"0%"}},{"v":0.3,"d":"30%"},{"$f":"IF(M$24=7,30%,0)","v":{"v":0,"d":"0%"}},{"v":0.3,"d":"30%"},{"$f":"IF(O$24=7,30%,0)","v":{"v":0,"d":"0%"}},{"v":0.3,"d":"30%"},{"$f":"IF(Q$24=7,30%,0)","v":{"v":0,"d":"0%"}}]
[null,{"v":5,"d":"05"},{"$nulls":8},{"v":0.35,"d":"35%"},{"$f":"IF(K$24=8,35%,0)","v":{"v":0,"d":"0%"}},{"v":0.35,"d":"35%"},{"$f":"IF(M$24=8,35%,0)","v":{"v":0,"d":"0%"}},{"v":0.35,"d":"35%"},{"$f":"IF(O$24=8,35%,0)","v":{"v":0,"d":"0%"}},{"v":0.35,"d":"35%"},{"$f":"IF(Q$24=8,35%,0)","v":{"v":0,"d":"0%"}}]
[null,{"v":6,"d":"06"},{"$nulls":8},{"v":0.4,"d":"40%"},{"$f":"IF(K$24=9,40%,0)","v":{"v":0,"d":"0%"}},{"v":0.4,"d":"40%"},{"$f":"IF(M$24=9,40%,0)","v":{"v":0,"d":"0%"}},{"v":0.4,"d":"40%"},{"$f":"IF(O$24=9,40%,0)","v":{"v":0,"d":"0%"}},{"v":0.4,"d":"40%"},{"$f":"IF(Q$24=9,40%,0)","v":{"v":0,"d":"0%"}}]
[null,{"v":7,"d":"07"},{"$nulls":8},{"v":0.45,"d":"45%"},{"$f":"IF(K$24=10,45%,0)","v":{"v":0,"d":"0%"}},{"v":0.45,"d":"45%"},{"$f":"IF(M$24=10,45%,0)","v":{"v":0,"d":"0%"}},{"v":0.45,"d":"45%"},{"$f":"IF(O$24=10,45%,0)","v":{"v":0,"d":"0%"}},{"v":0.45,"d":"45%"},{"$f":"IF(Q$24=10,45%,0)","v":{"v":0,"d":"0%"}}]
[null,{"v":8,"d":"08"},{"$nulls":8},{"v":0.5,"d":"50%"},{"$f":"IF(K$24=11,50%,0)","v":{"v":0.5,"d":"50%"}},{"v":0.5,"d":"50%"},{"$f":"IF(M$24=11,50%,0)","v":{"v":0,"d":"0%"}},{"v":0.5,"d":"50%"},{"$f":"IF(O$24=11,50%,0)","v":{"v":0,"d":"0%"}},{"v":0.5,"d":"50%"},{"$f":"IF(Q$24=11,50%,0)","v":{"v":0,"d":"0%"}}]
[null,{"v":9,"d":"09"},{"$nulls":8},{"v":0.55,"d":"55%"},{"$f":"IF(K$24=12,55%,0)","v":{"v":0,"d":"0%"}},{"v":0.55,"d":"55%"},{"$f":"IF(M$24=12,55%,0)","v":{"v":0,"d":"0%"}},{"v":0.55,"d":"55%"},{"$f":"IF(O$24=12,55%,0)","v":{"v":0,"d":"0%"}},{"v":0.55,"d":"55%"},{"$f":"IF(Q$24=12,55%,0)","v":{"v":0,"d":"0%"}}]
[null,10,{"$nulls":8},{"v":0.6,"d":"60%"},{"$f":"IF(K$24=13,60%,0)","v":{"v":0,"d":"0%"}},{"v":0.6,"d":"60%"},{"$f":"IF(M$24=13,60%,0)","v":{"v":0,"d":"0%"}},{"v":0.6,"d":"60%"},{"$f":"IF(O$24=13,60%,0)","v":{"v":0,"d":"0%"}},{"v":0.6,"d":"60%"},{"$f":"IF(Q$24=13,60%,0)","v":{"v":0,"d":"0%"}}]
[null,11,{"$nulls":8},{"v":0.65,"d":"65%"},{"$f":"IF(K$24=14,65%,0)","v":{"v":0,"d":"0%"}},{"v":0.65,"d":"65%"},{"$f":"IF(M$24=14,65%,0)","v":{"v":0,"d":"0%"}},{"v":0.65,"d":"65%"},{"$f":"IF(O$24=14,65%,0)","v":{"v":0,"d":"0%"}},{"v":0.65,"d":"65%"},{"$f":"IF(Q$24=14,65%,0)","v":{"v":0,"d":"0%"}}]
[null,12,{"$nulls":8},{"v":0.7,"d":"70%"},{"$f":"IF(K$24=15,70%,0)","v":{"v":0,"d":"0%"}},{"v":0.7,"d":"70%"},{"$f":"IF(M$24=15,70%,0)","v":{"v":0,"d":"0%"}},{"v":0.7,"d":"70%"},{"$f":"IF(O$24=15,70%,0)","v":{"v":0,"d":"0%"}},{"v":0.7,"d":"70%"},{"$f":"IF(Q$24=15,70%,0)","v":{"v":0,"d":"0%"}}]
[null,13,{"$nulls":8},{"v":0.75,"d":"75%"},{"$f":"IF(K$24=16,75%,0)","v":{"v":0,"d":"0%"}},{"v":0.75,"d":"75%"},{"$f":"IF(M$24=16,75%,0)","v":{"v":0,"d":"0%"}},{"v":0.75,"d":"75%"},{"$f":"IF(O$24=16,75%,0)","v":{"v":0,"d":"0%"}},{"v":0.75,"d":"75%"},{"$f":"IF(Q$24=16,75%,0)","v":{"v":0,"d":"0%"}}]
[null,14,{"$nulls":8},{"v":0.8,"d":"80%"},{"$f":"IF(K$24=17,80%,0)","v":{"v":0,"d":"0%"}},{"v":0.8,"d":"80%"},{"$f":"IF(M$24=17,80%,0)","v":{"v":0,"d":"0%"}},{"v":0.8,"d":"80%"},{"$f":"IF(O$24=17,80%,0)","v":{"v":0,"d":"0%"}},{"v":0.8,"d":"80%"},{"$f":"IF(Q$24=17,80%,0)","v":{"v":0,"d":"0%"}}]
[null,15,{"$nulls":8},{"v":0.85,"d":"85%"},{"$f":"IF(K$24=18,85%,0)","v":{"v":0,"d":"0%"}},{"v":0.85,"d":"85%"},{"$f":"IF(M$24=18,85%,0)","v":{"v":0,"d":"0%"}},{"v":0.85,"d":"85%"},{"$f":"IF(O$24=18,85%,0)","v":{"v":0,"d":"0%"}},{"v":0.85,"d":"85%"},{"$f":"IF(Q$24=18,85%,0)","v":{"v":0,"d":"0%"}}]
[null,16,{"$nulls":8},{"v":0.9,"d":"90%"},{"$f":"IF(K$24=19,90%,0)","v":{"v":0,"d":"0%"}},{"v":0.9,"d":"90%"},{"$f":"IF(M$24=19,90%,0)","v":{"v":0,"d":"0%"}},{"v":0.9,"d":"90%"},{"$f":"IF(O$24=19,90%,0)","v":{"v":0,"d":"0%"}},{"v":0.9,"d":"90%"},{"$f":"IF(Q$24=19,90%,0)","v":{"v":0,"d":"0%"}}]
[null,17,{"$nulls":8},{"v":0.95,"d":"95%"},{"$f":"IF(K$24=20,95%,0)","v":{"v":0,"d":"0%"}},{"v":0.95,"d":"95%"},{"$f":"IF(M$24=20,95%,0)","v":{"v":0,"d":"0%"}},{"v":0.95,"d":"95%"},{"$f":"IF(O$24=20,95%,0)","v":{"v":0,"d":"0%"}},{"v":0.95,"d":"95%"},{"$f":"IF(Q$24=20,95%,0)","v":{"v":0,"d":"0%"}}]
[null,18,{"$nulls":8},{"v":1,"d":"100%"},{"$f":"IF(K$24=21,100%,0)","v":{"v":0,"d":"0%"}},{"v":1,"d":"100%"},{"$f":"IF(M$24=21,100%,0)","v":{"v":0,"d":"0%"}},{"v":1,"d":"100%"},{"$f":"IF(O$24=21,100%,0)","v":{"v":0,"d":"0%"}},{"v":1,"d":"100%"},{"$f":"IF(Q$24=21,100%,0)","v":{"v":0,"d":"0%"}}]
[null,19]
[null,20,{"$nulls":9},{"$f":"SUM(L25:L45)","v":{"v":0.5,"d":"50%"}},null,{"$f":"SUM(N25:N45)","v":{"v":0.2,"d":"20%"}},null,{"$f":"SUM(P25:P45)","v":{"v":0.2,"d":"20%"}},null,{"$f":"SUM(R25:R45)","v":{"v":0.05,"d":"5%"}}]
[null,21]
[null,22,{"$nulls":8},2,1,null,1,2,{"$f":"VLOOKUP(L49,N50:O52,2,0)","v":"Bauhauptgewerbe"}]
[null,23,{"$nulls":8},"Ja","Bauhauptgewerbe",null,1,"Bauhauptgewerbe"]
[null,24,{"$nulls":8},"NEIN","Baunebengewerbe",null,2,"Baunebengewerbe"]
[null,25,{"$nulls":11},3]
[null,26]
[null,27]
[null,28]
[null,29]
[null,30]

{"sheet":"Offertöffnungsprotokoll","index":1,"n_rows":53,"n_cols":9,"rows_kept":53}
{"$rows_empty":8}
[null,"Protokoll Angebotsöffnung"]
[]
[null,{"$f":"Unternehmerverzeichnis!B11","v":"Standort"},null,{"$f":"Unternehmerverzeichnis!D11","v":0},null,null,"ProjektleiterIn IMMO",{"$f":"Unternehmerverzeichnis!H11","v":0}]
[null,{"$f":"Unternehmerverzeichnis!B12","v":"Objekt/Projekt"},null,{"$f":"Unternehmerverzeichnis!D12","v":0},null,null,"Architekt / GU",{"$f":"Unternehmerverzeichnis!H12","v":0}]
[null,{"$f":"Unternehmerverzeichnis!B13","v":"ID-Nummer"},null,{"$f":"Unternehmerverzeichnis!D13","v":0},null,null,"Fachplaner",{"$f":"Unternehmerverzeichnis!H13","v":0}]
[]
[null,"Auftragsart",null,{"$f":"Unternehmerverzeichnis!$L$9","v":"Bau"},{"$f":"IF(Unternehmerverzeichnis!L49=3,\" \",Unternehmerverzeichnis!P49)","v":"Bauhauptgewerbe"},null,"BKP Nr.",{"$f":"Unternehmerverzeichnis!$H$15","v":0}]
[null,"Verfahrensart",null,{"$f":"Unternehmerverzeichnis!L14","v":"Offenes Verfahren"},null,null,"Arbeitsgattung",{"$f":"Unternehmerverzeichnis!$H$16","v":0}]
[]
[]
[null,"Eingabetermin",null,"Mittwoch, ",null,null,"Datum Angebotsöffnung","Donnerstag,"]
[]
[null,"Unterschriften"]
[]
[null,null,"Anbieter Name",null,"Adresse","PLZ","Ort","Eingabesumme","Bemerkungen"]
[null,{"v":1,"d":"01"},{"$f":"IF(Unternehmerverzeichnis!C28>0,Unternehmerverzeichnis!C28,\" \")","v":" "},null,{"$f":"IF(Unternehmerverzeichnis!E28>0,Unternehmerverzeichnis!E28,\" \")","v":" "},{"$f":"IF(Unternehmerverzeichnis!F28>0,Unternehmerverzeichnis!F28,\" \")","v":" "},{"$f":"IF(Unternehmerverzeichnis!G28>0,Unternehmerverzeichnis!G28,\" \")","v":" "}]
[null,{"v":2,"d":"02"},{"$f":"IF(Unternehmerverzeichnis!C29>0,Unternehmerverzeichnis!C29,\" \")","v":" "},null,{"$f":"IF(Unternehmerverzeichnis!E29>0,Unternehmerverzeichnis!E29,\" \")","v":" "},{"$f":"IF(Unternehmerverzeichnis!F29>0,Unternehmerverzeichnis!F29,\" \")","v":" "},{"$f":"IF(Unternehmerverzeichnis!G29>0,Unternehmerverzeichnis!G29,\" \")","v":" "}]
[null,{"v":3,"d":"03"},{"$f":"IF(Unternehmerverzeichnis!C30>0,Unternehmerverzeichnis!C30,\" \")","v":" "},null,{"$f":"IF(Unternehmerverzeichnis!E30>0,Unternehmerverzeichnis!E30,\" \")","v":" "},{"$f":"IF(Unternehmerverzeichnis!F30>0,Unternehmerverzeichnis!F30,\" \")","v":" "},{"$f":"IF(Unternehmerverzeichnis!G30>0,Unternehmerverzeichnis!G30,\" \")","v":" "}]
[null,{"v":4,"d":"04"},{"$f":"IF(Unternehmerverzeichnis!C31>0,Unternehmerverzeichnis!C31,\" \")","v":" "},null,{"$f":"IF(Unternehmerverzeichnis!E31>0,Unternehmerverzeichnis!E31,\" \")","v":" "},{"$f":"IF(Unternehmerverzeichnis!F31>0,Unternehmerverzeichnis!F31,\" \")","v":" "},{"$f":"IF(Unternehmerverzeichnis!G31>0,Unternehmerverzeichnis!G31,\" \")","v":" "}]
[null,{"v":5,"d":"05"},{"$f":"IF(Unternehmerverzeichnis!C32>0,Unternehmerverzeichnis!C32,\" \")","v":" "},null,{"$f":"IF(Unternehmerverzeichnis!E32>0,Unternehmerverzeichnis!E32,\" \")","v":" "},{"$f":"IF(Unternehmerverzeichnis!F32>0,Unternehmerverzeichnis!F32,\" \")","v":" "},{"$f":"IF(Unternehmerverzeichnis!G32>0,Unternehmerverzeichnis!G32,\" \")","v":" "}]
[null,{"v":6,"d":"06"},{"$f":"IF(Unternehmerverzeichnis!C33>0,Unternehmerverzeichnis!C33,\" \")","v":" "},null,{"$f":"IF(Unternehmerverzeichnis!E33>0,Unternehmerverzeichnis!E33,\" \")","v":" "},{"$f":"IF(Unternehmerverzeichnis!F33>0,Unternehmerverzeichnis!F33,\" \")","v":" "},{"$f":"IF(Unternehmerverzeichnis!G33>0,Unternehmerverzeichnis!G33,\" \")","v":" "}]
[null,{"v":7,"d":"07"},{"$f":"IF(Unternehmerverzeichnis!C34>0,Unternehmerverzeichnis!C34,\" \")","v":" "},null,{"$f":"IF(Unternehmerverzeichnis!E34>0,Unternehmerverzeichnis!E34,\" \")","v":" "},{"$f":"IF(Unternehmerverzeichnis!F34>0,Unternehmerverzeichnis!F34,\" \")","v":" "},{"$f":"IF(Unternehmerverzeichnis!G34>0,Unternehmerverzeichnis!G34,\" \")","v":" "}]
[null,{"v":8,"d":"08"},{"$f":"IF(Unternehmerverzeichnis!C35>0,Unternehmerverzeichnis!C35,\" \")","v":" "},null,{"$f":"IF(Unternehmerverzeichnis!E35>0,Unternehmerverzeichnis!E35,\" \")","v":" "},{"$f":"IF(Unternehmerverzeichnis!F35>0,Unternehmerverzeichnis!F35,\" \")","v":" "},{"$f":"IF(Unternehmerverzeichnis!G35>0,Unternehmerverzeichnis!G35,\" \")","v":" "}]
[null,{"v":9,"d":"09"},{"$f":"IF(Unternehmerverzeichnis!C36>0,Unternehmerverzeichnis!C36,\" \")","v":" "},null,{"$f":"IF(Unternehmerverzeichnis!E36>0,Unternehmerverzeichnis!E36,\" \")","v":" "},{"$f":"IF(Unternehmerverzeichnis!F36>0,Unternehmerverzeichnis!F36,\" \")","v":" "},{"$f":"IF(Unternehmerverzeichnis!G36>0,Unternehmerverzeichnis!G36,\" \")","v":" "}]
[null,10,{"$f":"IF(Unternehmerverzeichnis!C37>0,Unternehmerverzeichnis!C37,\" \")","v":" "},null,{"$f":"IF(Unternehmerverzeichnis!E37>0,Unternehmerverzeichnis!E37,\" \")","v":" "},{"$f":"IF(Unternehmerverzeichnis!F37>0,Unternehmerverzeichnis!F37,\" \")","v":" "},{"$f":"IF(Unternehmerverzeichnis!G37>0,Unternehmerverzeichnis!G37,\" \")","v":" "}]
[null,11,{"$f":"IF(Unternehmerverzeichnis!C38>0,Unternehmerverzeichnis!C38,\" \")","v":" "},null,{"$f":"IF(Unternehmerverzeichnis!E38>0,Unternehmerverzeichnis!E38,\" \")","v":" "},{"$f":"IF(Unternehmerverzeichnis!F38>0,Unternehmerverzeichnis!F38,\" \")","v":" "},{"$f":"IF(Unternehmerverzeichnis!G38>0,Unternehmerverzeichnis!G38,\" \")","v":" "}]
[null,12,{"$f":"IF(Unternehmerverzeichnis!C39>0,Unternehmerverzeichnis!C39,\" \")","v":" "},null,{"$f":"IF(Unternehmerverzeichnis!E39>0,Unternehmerverzeichnis!E39,\" \")","v":" "},{"$f":"IF(Unternehmerverzeichnis!F39>0,Unternehmerverzeichnis!F39,\" \")","v":" "},{"$f":"IF(Unternehmerverzeichnis!G39>0,Unternehmerverzeichnis!G39,\" \")","v":" "}]
[null,13,{"$f":"IF(Unternehmerverzeichnis!C40>0,Unternehmerverzeichnis!C40,\" \")","v":" "},null,{"$f":"IF(Unternehmerverzeichnis!E40>0,Unternehmerverzeichnis!E40,\" \")","v":" "},{"$f":"IF(Unternehmerverzeichnis!F40>0,Unternehmerverzeichnis!F40,\" \")","v":" "},{"$f":"IF(Unternehmerverzeichnis!G40>0,Unternehmerverzeichnis!G40,\" \")","v":" "}]
[null,14,{"$f":"IF(Unternehmerverzeichnis!C41>0,Unternehmerverzeichnis!C41,\" \")","v":" "},null,{"$f":"IF(Unternehmerverzeichnis!E41>0,Unternehmerverzeichnis!E41,\" \")","v":" "},{"$f":"IF(Unternehmerverzeichnis!F41>0,Unternehmerverzeichnis!F41,\" \")","v":" "},{"$f":"IF(Unternehmerverzeichnis!G41>0,Unternehmerverzeichnis!G41,\" \")","v":" "}]
[null,15,{"$f":"IF(Unternehmerverzeichnis!C42>0,Unternehmerverzeichnis!C42,\" \")","v":" "},null,{"$f":"IF(Unternehmerverzeichnis!E42>0,Unternehmerverzeichnis!E42,\" \")","v":" "},{"$f":"IF(Unternehmerverzeichnis!F42>0,Unternehmerverzeichnis!F42,\" \")","v":" "},{"$f":"IF(Unternehmerverzeichnis!G42>0,Unternehmerverzeichnis!G42,\" \")","v":" "}]
[null,16,{"$f":"IF(Unternehmerverzeichnis!C43>0,Unternehmerverzeichnis!C43,\" \")","v":" "},null,{"$f":"IF(Unternehmerverzeichnis!E43>0,Unternehmerverzeichnis!E43,\" \")","v":" "},{"$f":"IF(Unternehmerverzeichnis!F43>0,Unternehmerverzeichnis!F43,\" \")","v":" "},{"$f":"IF(Unternehmerverzeichnis!G43>0,Unternehmerverzeichnis!G43,\" \")","v":" "}]
[null,17,{"$f":"IF(Unternehmerverzeichnis!C44>0,Unternehmerverzeichnis!C44,\" \")","v":" "},null,{"$f":"IF(Unternehmerverzeichnis!E44>0,Unternehmerverzeichnis!E44,\" \")","v":" "},{"$f":"IF(Unternehmerverzeichnis!F44>0,Unternehmerverzeichnis!F44,\" \")","v":" "},{"$f":"IF(Unternehmerverzeichnis!G44>0,Unternehmerverzeichnis!G44,\" \")","v":" "}]
[null,18,{"$f":"IF(Unternehmerverzeichnis!C45>0,Unternehmerverzeichnis!C45,\" \")","v":" "},null,{"$f":"IF(Unternehmerverzeichnis!E45>0,Unternehmerverzeichnis!E45,\" \")","v":" "},{"$f":"IF(Unternehmerverzeichnis!F45>0,Unternehmerverzeichnis!F45,\" \")","v":" "},{"$f":"IF(Unternehmerverzeichnis!G45>0,Unternehmerverzeichnis!G45,\" \")","v":" "}]
[null,19,{"$f":"IF(Unternehmerverzeichnis!C46>0,Unternehmerverzeichnis!C46,\" \")","v":" "},null,{"$f":"IF(Unternehmerverzeichnis!E46>0,Unternehmerverzeichnis!E46,\" \")","v":" "},{"$f":"IF(Unternehmerverzeichnis!F46>0,Unternehmerverzeichnis!F46,\" \")","v":" "},{"$f":"IF(Unternehmerverzeichnis!G46>0,Unternehmerverzeichnis!G46,\" \")","v":" "}]
[null,20,{"$f":"IF(Unternehmerverzeichnis!C47>0,Unternehmerverzeichnis!C47,\" \")","v":" "},null,{"$f":"IF(Unternehmerverzeichnis!E47>0,Unternehmerverzeichnis!E47,\" \")","v":" "},{"$f":"IF(Unternehmerverzeichnis!F47>0,Unternehmerverzeichnis!F47,\" \")","v":" "},{"$f":"IF(Unternehmerverzeichnis!G47>0,Unternehmerverzeichnis!G47,\" \")","v":" "}]
[null,21,{"$f":"IF(Unternehmerverzeichnis!C48>0,Unternehmerverzeichnis!C48,\" \")","v":" "},null,{"$f":"IF(Unternehmerverzeichnis!E48>0,Unternehmerverzeichnis!E48,\" \")","v":" "},{"$f":"IF(Unternehmerverzeichnis!F48>0,Unternehmerverzeichnis!F48,\" \")","v":" "},{"$f":"IF(Unternehmerverzeichnis!G48>0,Unternehmerverzeichnis!G48,\" \")","v":" "}]
[null,22,{"$f":"IF(Unternehmerverzeichnis!C49>0,Unternehmerverzeichnis!C49,\" \")","v":" "},null,{"$f":"IF(Unternehmerverzeichnis!E49>0,Unternehmerverzeichnis!E49,\" \")","v":" "},{"$f":"IF(Unternehmerverzeichnis!F49>0,Unternehmerverzeichnis!F49,\" \")","v":" "},{"$f":"IF(Unternehmerverzeichnis!G49>0,Unternehmerverzeichnis!G49,\" \")","v":" "}]
[null,23,{"$f":"IF(Unternehmerverzeichnis!C50>0,Unternehmerverzeichnis!C50,\" \")","v":" "},null,{"$f":"IF(Unternehmerverzeichnis!E50>0,Unternehmerverzeichnis!E50,\" \")","v":" "},{"$f":"IF(Unternehmerverzeichnis!F50>0,Unternehmerverzeichnis!F50,\" \")","v":" "},{"$f":"IF(Unternehmerverzeichnis!G50>0,Unternehmerverzeichnis!G50,\" \")","v":" "}]
[null,24,{"$f":"IF(Unternehmerverzeichnis!C51>0,Unternehmerverzeichnis!C51,\" \")","v":" "},null,{"$f":"IF(Unternehmerverzeichnis!E51>0,Unternehmerverzeichnis!E51,\" \")","v":" "},{"$f":"IF(Unternehmerverzeichnis!F51>0,Unternehmerverzeichnis!F51,\" \")","v":" "},{"$f":"IF(Unternehmerverzeichnis!G51>0,Unternehmerverzeichnis!G51,\" \")","v":" "}]
[null,25,{"$f":"IF(Unternehmerverzeichnis!C52>0,Unternehmerverzeichnis!C52,\" \")","v":" "},null,{"$f":"IF(Unternehmerverzeichnis!E52>0,Unternehmerverzeichnis!E52,\" \")","v":" "},{"$f":"IF(Unternehmerverzeichnis!F52>0,Unternehmerverzeichnis!F52,\" \")","v":" "},{"$f":"IF(Unternehmerverzeichnis!G52>0,Unternehmerverzeichnis!G52,\" \")","v":" "}]
[null,26,{"$f":"IF(Unternehmerverzeichnis!C53>0,Unternehmerverzeichnis!C53,\" \")","v":" "},null,{"$f":"IF(Unternehmerverzeichnis!E53>0,Unternehmerverzeichnis!E53,\" \")","v":" "},{"$f":"IF(Unternehmerverzeichnis!F53>0,Unternehmerverzeichnis!F53,\" \")","v":" "},{"$f":"IF(Unternehmerverzeichnis!G53>0,Unternehmerverzeichnis!G53,\" \")","v":" "}]
[null,27,{"$f":"IF(Unternehmerverzeichnis!C54>0,Unternehmerverzeichnis!C54,\" \")","v":" "},null,{"$f":"IF(Unternehmerverzeichnis!E54>0,Unternehmerverzeichnis!E54,\" \")","v":" "},{"$f":"IF(Unternehmerverzeichnis!F54>0,Unternehmerverzeichnis!F54,\" \")","v":" "},{"$f":"IF(Unternehmerverzeichnis!G54>0,Unternehmerverzeichnis!G54,\" \")","v":" "}]
[null,28,{"$f":"IF(Unternehmerverzeichnis!C55>0,Unternehmerverzeichnis!C55,\" \")","v":" "},null,{"$f":"IF(Unternehmerverzeichnis!E55>0,Unternehmerverzeichnis!E55,\" \")","v":" "},{"$f":"IF(Unternehmerverzeichnis!F55>0,Unternehmerverzeichnis!F55,\" \")","v":" "},{"$f":"IF(Unternehmerverzeichnis!G55>0,Unternehmerverzeichnis!G55,\" \")","v":" "}]
[null,29,{"$f":"IF(Unternehmerverzeichnis!C56>0,Unternehmerverzeichnis!C56,\" \")","v":" "},null,{"$f":"IF(Unternehmerverzeichnis!E56>0,Unternehmerverzeichnis!E56,\" \")","v":" "},{"$f":"IF(Unternehmerverzeichnis!F56>0,Unternehmerverzeichnis!F56,\" \")","v":" "},{"$f":"IF(Unternehmerverzeichnis!G56>0,Unternehmerverzeichnis!G56,\" \")","v":" "}]
[null,30,{"$f":"IF(Unternehmerverzeichnis!C57>0,Unternehmerverzeichnis!C57,\" \")","v":" "},null,{"$f":"IF(Unternehmerverzeichnis!E57>0,Unternehmerverzeichnis!E57,\" \")","v":" "},{"$f":"IF(Unternehmerverzeichnis!F57>0,Unternehmerverzeichnis!F57,\" \")","v":" "},{"$f":"IF(Unternehmerverzeichnis!G57>0,Unternehmerverzeichnis!G57,\" \")","v":" "}]

{"sheet":"Auswertung","index":2,"n_rows":59,"n_cols":30,"rows_kept":59,"merged":[[20,6,20,9],[21,6,21,9],[22,3,22,5]]}
{"$rows_empty":8}
[null,"Auswertung der Angebote"]
[]
[null,{"$f":"Unternehmerverzeichnis!B11","v":"Standort"},{"$f":"Unternehmerverzeichnis!D11","v":0}]
[null,{"$f":"Unternehmerverzeichnis!B12","v":"Objekt/Projekt"},{"$f":"Unternehmerverzeichnis!D12","v":0}]
[null,{"$f":"Unternehmerverzeichnis!B13","v":"ID-Nummer"},{"$f":"Unternehmerverzeichnis!D13","v":0}]
[]
[null,"Zuschlagskriterien",null,null,"Eignungskriterien",{"$nulls":5},"Auftragsart",null,null,{"$f":"Unternehmerverzeichnis!L9","v":"Bau"},null,{"$f":"IF(Unternehmerverzeichnis!L49=3,\" \",Unternehmerverzeichnis!P49)","v":"Bauhauptgewerbe"}]
[null,{"$f":"Unternehmerverzeichnis!B20","v":"Preis"},{"$f":"Unternehmerverzeichnis!C20","v":0},{"$f":"SUM(Unternehmerverzeichnis!L47)","v":{"v":0.5,"d":"50%    "}},{"$f":"IF(Unternehmerverzeichnis!E20>0,Unternehmerverzeichnis!E20,\" \")","v":" "},{"$nulls":5},"Verfahrensart",null,null,{"$f":"Unternehmerverzeichnis!L14","v":"Offenes Verfahren"}]
[null,{"$f":"Unternehmerverzeichnis!B21","v":"Qualität"},{"$f":"Unternehmerverzeichnis!C21","v":0},{"$f":"SUM(Unternehmerverzeichnis!N47)","v":{"v":0.2,"d":"20%    "}},{"$f":"IF(Unternehmerverzeichnis!E21>0,Unternehmerverzeichnis!E21,\" \")","v":" "},{"$nulls":5},"BKP Nr.",null,null,{"$f":"Unternehmerverzeichnis!H15","v":0}]
[null,{"$f":"Unternehmerverzeichnis!B22","v":"Termin "},{"$f":"Unternehmerverzeichnis!C22","v":0},{"$f":"SUM(Unternehmerverzeichnis!P47)","v":{"v":0.2,"d":"20%    "}},{"$f":"IF(Unternehmerverzeichnis!E22>0,Unternehmerverzeichnis!E22,\" \")","v":" "},{"$nulls":5},"Arbeitsgattung",null,null,{"$f":"Unternehmerverzeichnis!H16","v":0}]
[null,{"$f":"Unternehmerverzeichnis!B23","v":"Lernende"},{"$f":"Unternehmerverzeichnis!C23","v":0},{"$f":"SUM(Unternehmerverzeichnis!R47)","v":{"v":0.05,"d":"5%    "}},{"$f":"IF(Unternehmerverzeichnis!E23>0,Unternehmerverzeichnis!E23,\" \")","v":" "},{"$nulls":16},"günstiges "]
[null,"Total",null,{"$f":"SUM(D16:D19)","v":{"v":0.95,"d":"95%    "}},null,{"$f":"IF(Unternehmerverzeichnis!E24>0,Unternehmerverzeichnis!E24,\" \")","v":" "},{"$nulls":15},"Angebot"]
[{"$nulls":6},{"$f":"IF(OR($N$16=\"Einladungsverfahren\",$N$16=\"Freihändige Vergabe\"),\" \",\"Eignungskriterien erfüllt\")","v":"Eignungskriterien erfüllt"},{"$nulls":3},"Bewertung der Zuschlagskriterien:",{"$nulls":10},{"$f":"SMALL(V23:V52,1)","v":{"$error":"#NUM!"}},"Punkt für Lehrlinge"]
[{"$nulls":6},{"$f":"IF(OR($N$16=\"Einladungsverfahren\",$N$16=\"Freihändige Vergabe\"),\" \",\"ja / nein\")","v":"ja / nein"},{"$nulls":3},{"$f":"Unternehmerverzeichnis!B20","v":"Preis"},null,null,{"$f":"Unternehmerverzeichnis!B21","v":"Qualität"},null,{"$f":"Unternehmerverzeichnis!B22","v":"Termin "},null,{"$f":"Unternehmerverzeichnis!B23","v":"Lernende"},{"$nulls":4},"0 Lehrlinge","Faktor <0.05","Faktor <0.10","Faktor <0.15","Faktor <0.20","Faktor >0.20","Total"]
[null,"Anbieter Name","PLZ","Geschäftsdomizil",null,null,"1\nj/n","2\nj/n","3\nj/n","4\nj/n","kontrollierte\nNettosumme","Quo-\ntient","Gew.\nPkt.","Pkt.","Gew.\nPkt.","Pkt.","Gew.\nPkt.","L / MA","Pkt.","Gew.\nPkt.","Total\nPunkte",{"$f":"IF(K24>0,K24,\" \")","v":" "},{"$f":"IF(R24=0,0,0)","v":0},{"$f":"IF(AND(R24>0,R24<0.0499),1,0)","v":0},{"$f":"IF(AND(R24>0.0499,R24<0.0999),2,0)","v":0},{"$f":"IF(AND(R24>0.0999,R24<0.1499),3,0)","v":0},{"$f":"IF(AND(R24>0.1499,R24<0.1999),4,0)","v":0},{"$f":"IF(R24>0.1999,5,0)","v":0},{"$f":"SUM(W23:AB23)","v":0},"Preisquotient"]
[null,{"$f":"IF(Unternehmerverzeichnis!C28>0,Unternehmerverzeichnis!C28,\" \")","v":" "},{"$f":"IF(Unternehmerverzeichnis!F28>0,Unternehmerverzeichnis!F28,\" \")","v":" "},{"$f":"IF(Unternehmerverzeichnis!G28>0,Unternehmerverzeichnis!G28,\" \")","v":" "},{"$nulls":7},{"$f":"IF(AD24>1,AD24,1)","v":" "},{"$f":"IF(K24>0,L24*$D$16,\" \")","v":" "},null,{"$f":"IF(K24>0,N24*$D$17,\" \")","v":" "},null,{"$f":"IF(K24>0,P24*$D$18,\" \")","v":" "},null,{"$f":"IF(K24>0,AC23,\" \")","v":" "},{"$f":"IF(K24>0,S24*$D$19,\" \")","v":" "},{"$f":"IF(K24>0,(M24+O24+Q24+T24),\" \")","v":" "}," ",0,{"$f":"IF(AND(R25>0,R25<0.0499),1,0)","v":0},{"$f":"IF(AND(R25>0.0499,R25<0.0999),2,0)","v":0},{"$f":"IF(AND(R25>0.0999,R25<0.1499),3,0)","v":0},{"$f":"IF(AND(R25>0.1499,R25<0.1999),4,0)","v":0},{"$f":"IF(R25>0.1999,5,0)","v":0},{"$f":"SUM(W24:AB24)","v":0},{"$f":"IF(K24>0,4/($V$21*1.5-$V$21)*($V$21*1.5-K24)+1,\" \")","v":" "}]
[null,{"$f":"IF(Unternehmerverzeichnis!C29>0,Unternehmerverzeichnis!C29,\" \")","v":" "},{"$f":"IF(Unternehmerverzeichnis!F29>0,Unternehmerverzeichnis!F29,\" \")","v":" "},{"$f":"IF(Unternehmerverzeichnis!G29>0,Unternehmerverzeichnis!G29,\" \")","v":" "},{"$nulls":7}," ",{"$f":"IF(K25>0,L25*$D$16,\" \")","v":" "},null,{"$f":"IF(K25>0,N25*$D$17,\" \")","v":" "},null,{"$f":"IF(K25>0,P25*$D$18,\" \")","v":" "},null," "," ",{"$f":"IF(K25>0,(M25+O25+Q25+T25),\" \")","v":" "}," ",0,0,0,0,0,0,0,{"$f":"IF(K25>0,4/($V$21*1.5-$V$21)*($V$21*1.5-K25)+1,\" \")","v":" "}]
[null,{"$f":"IF(Unternehmerverzeichnis!C30>0,Unternehmerverzeichnis!C30,\" \")","v":" "},{"$f":"IF(Unternehmerverzeichnis!F30>0,Unternehmerverzeichnis!F30,\" \")","v":" "},{"$f":"IF(Unternehmerverzeichnis!G30>0,Unternehmerverzeichnis!G30,\" \")","v":" "},{"$nulls":7}," "," ",null,{"$f":"IF(K26>0,N26*$D$17,\" \")","v":" "},null,{"$f":"IF(K26>0,P26*$D$18,\" \")","v":" "},null," "," ",{"$f":"IF(K26>0,(M26+O26+Q26+T26),\" \")","v":" "}," ",0,0,0,0,0,0,0," "]
[null,{"$f":"IF(Unternehmerverzeichnis!C31>0,Unternehmerverzeichnis!C31,\" \")","v":" "},{"$f":"IF(Unternehmerverzeichnis!F31>0,Unternehmerverzeichnis!F31,\" \")","v":" "},{"$f":"IF(Unternehmerverzeichnis!G31>0,Unternehmerverzeichnis!G31,\" \")","v":" "},{"$nulls":7}," "," ",null,{"$f":"IF(K27>0,N27*$D$17,\" \")","v":" "},null,{"$f":"IF(K27>0,P27*$D$18,\" \")","v":" "},null," "," ",{"$f":"IF(K27>0,(M27+O27+Q27+T27),\" \")","v":" "}," ",0,0,0,0,0,0,0," "]
[null,{"$f":"IF(Unternehmerverzeichnis!C32>0,Unternehmerverzeichnis!C32,\" \")","v":" "},{"$f":"IF(Unternehmerverzeichnis!F32>0,Unternehmerverzeichnis!F32,\" \")","v":" "},{"$f":"IF(Unternehmerverzeichnis!G32>0,Unternehmerverzeichnis!G32,\" \")","v":" "},{"$nulls":7}," "," ",null,{"$f":"IF(K28>0,N28*$D$17,\" \")","v":" "},null,{"$f":"IF(K28>0,P28*$D$18,\" \")","v":" "},null," "," ",{"$f":"IF(K28>0,(M28+O28+Q28+T28),\" \")","v":" "}," ",0,0,0,0,0,0,0," "]
[null,{"$f":"IF(Unternehmerverzeichnis!C33>0,Unternehmerverzeichnis!C33,\" \")","v":" "},{"$f":"IF(Unternehmerverzeichnis!F33>0,Unternehmerverzeichnis!F33,\" \")","v":" "},{"$f":"IF(Unternehmerverzeichnis!G33>0,Unternehmerverzeichnis!G33,\" \")","v":" "},{"$nulls":7}," "," ",null,{"$f":"IF(K29>0,N29*$D$17,\" \")","v":" "},null,{"$f":"IF(K29>0,P29*$D$18,\" \")","v":" "},null," "," ",{"$f":"IF(K29>0,(M29+O29+Q29+T29),\" \")","v":" "}," ",0,0,0,0,0,0,0," "]
[null,{"$f":"IF(Unternehmerverzeichnis!C34>0,Unternehmerverzeichnis!C34,\" \")","v":" "},{"$f":"IF(Unternehmerverzeichnis!F34>0,Unternehmerverzeichnis!F34,\" \")","v":" "},{"$f":"IF(Unternehmerverzeichnis!G34>0,Unternehmerverzeichnis!G34,\" \")","v":" "},{"$nulls":7}," "," ",null," ",null," ",null," "," "," "," ",0,0,0,0,0,0,0," "]
[null,{"$f":"IF(Unternehmerverzeichnis!C35>0,Unternehmerverzeichnis!C35,\" \")","v":" "},{"$f":"IF(Unternehmerverzeichnis!F35>0,Unternehmerverzeichnis!F35,\" \")","v":" "},{"$f":"IF(Unternehmerverzeichnis!G35>0,Unternehmerverzeichnis!G35,\" \")","v":" "},{"$nulls":7}," "," ",null," ",null," ",null," "," "," "," ",0,0,0,0,0,0,0," "]
[null,{"$f":"IF(Unternehmerverzeichnis!C36>0,Unternehmerverzeichnis!C36,\" \")","v":" "},{"$f":"IF(Unternehmerverzeichnis!F36>0,Unternehmerverzeichnis!F36,\" \")","v":" "},{"$f":"IF(Unternehmerverzeichnis!G36>0,Unternehmerverzeichnis!G36,\" \")","v":" "},{"$nulls":7}," "," ",null," ",null," ",null," "," "," "," ",0,0,0,0,0,0,0," "]
[null,{"$f":"IF(Unternehmerverzeichnis!C37>0,Unternehmerverzeichnis!C37,\" \")","v":" "},{"$f":"IF(Unternehmerverzeichnis!F37>0,Unternehmerverzeichnis!F37,\" \")","v":" "},{"$f":"IF(Unternehmerverzeichnis!G37>0,Unternehmerverzeichnis!G37,\" \")","v":" "},{"$nulls":7}," "," ",null," ",null," ",null," "," "," "," ",0,0,0,0,0,0,0," "]
[null,{"$f":"IF(Unternehmerverzeichnis!C38>0,Unternehmerverzeichnis!C38,\" \")","v":" "},{"$f":"IF(Unternehmerverzeichnis!F38>0,Unternehmerverzeichnis!F38,\" \")","v":" "},{"$f":"IF(Unternehmerverzeichnis!G38>0,Unternehmerverzeichnis!G38,\" \")","v":" "},{"$nulls":7}," "," ",null," ",null," ",null," "," "," "," ",0,0,0,0,0,0,0," "]
[null,{"$f":"IF(Unternehmerverzeichnis!C39>0,Unternehmerverzeichnis!C39,\" \")","v":" "},{"$f":"IF(Unternehmerverzeichnis!F39>0,Unternehmerverzeichnis!F39,\" \")","v":" "},{"$f":"IF(Unternehmerverzeichnis!G39>0,Unternehmerverzeichnis!G39,\" \")","v":" "},{"$nulls":7}," ",{"$f":"IF(K35>0,L35*$D$16,\" \")","v":" "},null," ",null," ",null," "," "," "," ",{"$f":"IF(R36=0,0,0)","v":0},0,0,0,0,0,0," "]
[null,{"$f":"IF(Unternehmerverzeichnis!C40>0,Unternehmerverzeichnis!C40,\" \")","v":" "},{"$f":"IF(Unternehmerverzeichnis!F40>0,Unternehmerverzeichnis!F40,\" \")","v":" "},{"$f":"IF(Unternehmerverzeichnis!G40>0,Unternehmerverzeichnis!G40,\" \")","v":" "},{"$nulls":7}," ",{"$f":"IF(K36>0,L36*$D$16,\" \")","v":" "},null," ",null," ",null," ",{"$f":"IF(K36>0,S36*$D$19,\" \")","v":" "}," "," ",0,0,0,0,0,0,0," "]
[null,{"$f":"IF(Unternehmerverzeichnis!C41>0,Unternehmerverzeichnis!C41,\" \")","v":" "},{"$f":"IF(Unternehmerverzeichnis!F41>0,Unternehmerverzeichnis!F41,\" \")","v":" "},{"$f":"IF(Unternehmerverzeichnis!G41>0,Unternehmerverzeichnis!G41,\" \")","v":" "},{"$nulls":7}," "," ",null," ",null," ",null," "," "," "," ",0,0,0,0,0,0,0," "]
[null,{"$f":"IF(Unternehmerverzeichnis!C42>0,Unternehmerverzeichnis!C42,\" \")","v":" "},{"$f":"IF(Unternehmerverzeichnis!F42>0,Unternehmerverzeichnis!F42,\" \")","v":" "},{"$f":"IF(Unternehmerverzeichnis!G42>0,Unternehmerverzeichnis!G42,\" \")","v":" "},{"$nulls":7}," "," ",null," ",null," ",null," "," "," "," ",0,0,0,0,0,0,0," "]
[null,{"$f":"IF(Unternehmerverzeichnis!C43>0,Unternehmerverzeichnis!C43,\" \")","v":" "},{"$f":"IF(Unternehmerverzeichnis!F43>0,Unternehmerverzeichnis!F43,\" \")","v":" "},{"$f":"IF(Unternehmerverzeichnis!G43>0,Unternehmerverzeichnis!G43,\" \")","v":" "},{"$nulls":7}," "," ",null," ",null," ",null," "," "," "," ",0,0,0,0,0,0,0," "]
[null,{"$f":"IF(Unternehmerverzeichnis!C44>0,Unternehmerverzeichnis!C44,\" \")","v":" "},{"$f":"IF(Unternehmerverzeichnis!F44>0,Unternehmerverzeichnis!F44,\" \")","v":" "},{"$f":"IF(Unternehmerverzeichnis!G44>0,Unternehmerverzeichnis!G44,\" \")","v":" "},{"$nulls":7}," "," ",null," ",null," ",null," "," "," "," ",0,0,0,0,0,0,0," "]
[null,{"$f":"IF(Unternehmerverzeichnis!C45>0,Unternehmerverzeichnis!C45,\" \")","v":" "},{"$f":"IF(Unternehmerverzeichnis!F45>0,Unternehmerverzeichnis!F45,\" \")","v":" "},{"$f":"IF(Unternehmerverzeichnis!G45>0,Unternehmerverzeichnis!G45,\" \")","v":" "},{"$nulls":7}," "," ",null," ",null," ",null," "," "," "," ",0,0,0,0,0,0,0," "]
[null,{"$f":"IF(Unternehmerverzeichnis!C46>0,Unternehmerverzeichnis!C46,\" \")","v":" "},{"$f":"IF(Unternehmerverzeichnis!F46>0,Unternehmerverzeichnis!F46,\" \")","v":" "},{"$f":"IF(Unternehmerverzeichnis!G46>0,Unternehmerverzeichnis!G46,\" \")","v":" "},{"$nulls":7}," "," ",null," ",null," ",null," "," "," "," ",0,0,0,0,0,0,0," "]
[null,{"$f":"IF(Unternehmerverzeichnis!C47>0,Unternehmerverzeichnis!C47,\" \")","v":" "},{"$f":"IF(Unternehmerverzeichnis!F47>0,Unternehmerverzeichnis!F47,\" \")","v":" "},{"$f":"IF(Unternehmerverzeichnis!G47>0,Unternehmerverzeichnis!G47,\" \")","v":" "},{"$nulls":7}," "," ",null," ",null," ",null," "," "," "," ",0,0,0,0,0,0,0," "]
[null,{"$f":"IF(Unternehmerverzeichnis!C48>0,Unternehmerverzeichnis!C48,\" \")","v":" "},{"$f":"IF(Unternehmerverzeichnis!F48>0,Unternehmerverzeichnis!F48,\" \")","v":" "},{"$f":"IF(Unternehmerverzeichnis!G48>0,Unternehmerverzeichnis!G48,\" \")","v":" "},{"$nulls":7}," "," ",null," ",null," ",null," "," "," "," ",0,0,0,0,0,0,0," "]
[null,{"$f":"IF(Unternehmerverzeichnis!C49>0,Unternehmerverzeichnis!C49,\" \")","v":" "},{"$f":"IF(Unternehmerverzeichnis!F49>0,Unternehmerverzeichnis!F49,\" \")","v":" "},{"$f":"IF(Unternehmerverzeichnis!G49>0,Unternehmerverzeichnis!G49,\" \")","v":" "},{"$nulls":7}," "," ",null," ",null," ",null," "," "," "," ",0,0,0,0,0,0,0," "]
[null,{"$f":"IF(Unternehmerverzeichnis!C50>0,Unternehmerverzeichnis!C50,\" \")","v":" "},{"$f":"IF(Unternehmerverzeichnis!F50>0,Unternehmerverzeichnis!F50,\" \")","v":" "},{"$f":"IF(Unternehmerverzeichnis!G50>0,Unternehmerverzeichnis!G50,\" \")","v":" "},{"$nulls":7}," "," ",null," ",null," ",null," "," "," "," ",0,0,0,0,0,0,0," "]
[null,{"$f":"IF(Unternehmerverzeichnis!C51>0,Unternehmerverzeichnis!C51,\" \")","v":" "},{"$f":"IF(Unternehmerverzeichnis!F51>0,Unternehmerverzeichnis!F51,\" \")","v":" "},{"$f":"IF(Unternehmerverzeichnis!G51>0,Unternehmerverzeichnis!G51,\" \")","v":" "},{"$nulls":7}," "," ",null," ",null," ",null," "," "," "," ",0,0,0,0,0,0,0," "]
[null,{"$f":"IF(Unternehmerverzeichnis!C52>0,Unternehmerverzeichnis!C52,\" \")","v":" "},{"$f":"IF(Unternehmerverzeichnis!F52>0,Unternehmerverzeichnis!F52,\" \")","v":" "},{"$f":"IF(Unternehmerverzeichnis!G52>0,Unternehmerverzeichnis!G52,\" \")","v":" "},{"$nulls":7}," "," ",null," ",null," ",null," "," "," ",{"$f":"IF(K49>0,K49,\" \")","v":" "},{"$f":"IF(R49=0,0,0)","v":0},0,0,0,0,0,0," "]
[null,{"$f":"IF(Unternehmerverzeichnis!C53>0,Unternehmerverzeichnis!C53,\" \")","v":" "},{"$f":"IF(Unternehmerverzeichnis!F53>0,Unternehmerverzeichnis!F53,\" \")","v":" "},{"$f":"IF(Unternehmerverzeichnis!G53>0,Unternehmerverzeichnis!G53,\" \")","v":" "},{"$nulls":7}," "," ",null," ",null," ",null," "," "," ",{"$f":"IF(K50>0,K50,\" \")","v":" "},{"$f":"IF(R50=0,0,0)","v":0},0,0,0,0,0,0," "]
[null,{"$f":"IF(Unternehmerverzeichnis!C54>0,Unternehmerverzeichnis!C54,\" \")","v":" "},{"$f":"IF(Unternehmerverzeichnis!F54>0,Unternehmerverzeichnis!F54,\" \")","v":" "},{"$f":"IF(Unternehmerverzeichnis!G54>0,Unternehmerverzeichnis!G54,\" \")","v":" "},{"$nulls":7}," "," ",null," ",null," ",null," "," "," ",{"$f":"IF(K51>0,K51,\" \")","v":" "},{"$f":"IF(R51=0,0,0)","v":0},0,0,0,0,0,0," "]
[null,{"$f":"IF(Unternehmerverzeichnis!C55>0,Unternehmerverzeichnis!C55,\" \")","v":" "},{"$f":"IF(Unternehmerverzeichnis!F55>0,Unternehmerverzeichnis!F55,\" \")","v":" "},{"$f":"IF(Unternehmerverzeichnis!G55>0,Unternehmerverzeichnis!G55,\" \")","v":" "},{"$nulls":7}," "," ",null," ",null," ",null," "," "," ",{"$f":"IF(K52>0,K52,\" \")","v":" "},{"$f":"IF(R52=0,0,0)","v":0},0,0,0,0,0,0," "]
[null,{"$f":"IF(Unternehmerverzeichnis!C56>0,Unternehmerverzeichnis!C56,\" \")","v":" "},{"$f":"IF(Unternehmerverzeichnis!F56>0,Unternehmerverzeichnis!F56,\" \")","v":" "},{"$f":"IF(Unternehmerverzeichnis!G56>0,Unternehmerverzeichnis!G56,\" \")","v":" "},{"$nulls":7}," "," ",null," ",null," ",null," "," "," ",{"$f":"IF(K53>0,K53,\" \")","v":" "},{"$f":"IF(R53=0,0,0)","v":0},0,0,0,0,0,0," "]
[null,{"$f":"IF(Unternehmerverzeichnis!C57>0,Unternehmerverzeichnis!C57,\" \")","v":" "},{"$f":"IF(Unternehmerverzeichnis!F57>0,Unternehmerverzeichnis!F57,\" \")","v":" "},{"$f":"IF(Unternehmerverzeichnis!G57>0,Unternehmerverzeichnis!G57,\" \")","v":" "},{"$nulls":7}," "," ",null,{"$f":"IF(K53>0,N53*$D$17,\" \")","v":" "},null,{"$f":"IF(K53>0,P53*$D$18,\" \")","v":" "},null," ",{"$f":"IF(K53>0,S53*$D$19,\" \")","v":" "},{"$f":"IF(K53>0,(M53+O53+Q53+T53),\" \")","v":" "},{"$nulls":8}," "]
[]
[null,"Berechnungsmodus"]
[null,"Preis","0 bis 5 Punkte (Zwischenwertungen sind möglich) gemäss Bewertungsraster "]
[null,"Qualität","0 bis 5 Punkte (Zwischenwertungen sind möglich) gemäss Bewertungsraster"]
[null,"Termin","0 bis 5 Punkte (Zwischenwertungen sind möglich) gemäss Bewertungsraster"]
[null,"Lernende","0 bis 5 Punkte (Zwischenwertungen sind möglich) gemäss Bewertungsraster"]

{"sheet":"Antrag","index":3,"n_rows":63,"n_cols":21,"rows_kept":63,"merged":[[15,1,15,2],[16,1,16,2],[16,19,16,20],[17,1,17,2],[18,1,18,2],[20,10,20,14],[22,5,22,6],[55,5,55,6],[56,5,56,6],[56,8,60,12],[57,5,57,6],[58,5,58,6],[59,5,59,6],[60,5,60,6],[60,13,60,16]]}
{"$rows_empty":8}
[null,"Zusammenstellung der Angebote / Antrag auf Zuschlag",{"$nulls":15},1,2]
[]
[null,{"$f":"Unternehmerverzeichnis!B11","v":"Standort"},null,{"$f":"Unternehmerverzeichnis!D11","v":0},{"$nulls":13},1,"Projektleiter"]
[null,{"$f":"Unternehmerverzeichnis!B12","v":"Objekt/Projekt"},null,{"$f":"Unternehmerverzeichnis!D12","v":0},{"$nulls":13},2,"Abteilungsleiter"]
[null,{"$f":"Unternehmerverzeichnis!B13","v":"ID-Nummer"},null,{"$f":"Unternehmerverzeichnis!D13","v":0},{"$nulls":13},3,"Kantonsbaumeister"]
[{"$nulls":17},4,"Finanzdepartement"]
[null,"Zuschlagskriterien",null,null,"Eignungskriterien",{"$nulls":4},"Auftragsart",null,{"$f":"Unternehmerverzeichnis!L9","v":"Bau"},null,{"$f":"IF(Unternehmerverzeichnis!L49=3,\" \",Unternehmerverzeichnis!P49)","v":"Bauhauptgewerbe"},{"$nulls":3},5,"Regierungsrat"]
[null,{"$f":"Unternehmerverzeichnis!B20","v":"Preis"},null,{"$f":"SUM(Auswertung!D16)","v":{"v":0.5,"d":"50%"}},{"$f":"IF(Auswertung!E16>0,Auswertung!E16,\" \")","v":" "},{"$nulls":4},"Verfahrensart",null,{"$f":"Unternehmerverzeichnis!L14","v":"Offenes Verfahren"}]
[null,{"$f":"Unternehmerverzeichnis!B21","v":"Qualität"},null,{"$f":"SUM(Auswertung!D17)","v":{"v":0.2,"d":"20%"}},{"$f":"IF(Auswertung!E17>0,Auswertung!E17,\" \")","v":" "},{"$nulls":4},"BKP Nr.",null,{"$f":"Unternehmerverzeichnis!H15","v":0},{"$nulls":5},{"$f":"SUM(R19:R44)","v":1},{"$f":"VLOOKUP(R17,R11:S15,S9,0)","v":"Projektleiter"},"Kompetenz"]
[null,{"$f":"Unternehmerverzeichnis!B22","v":"Termin "},null,{"$f":"SUM(Auswertung!D18)","v":{"v":0.2,"d":"20%"}},{"$f":"IF(Auswertung!E18>0,Auswertung!E18,\" \")","v":" "},{"$nulls":4},"Arbeitsgattung",null,{"$f":"Unternehmerverzeichnis!H16","v":0},{"$nulls":5},"Dienstleistungen",null,"von","bis"]
[null,{"$f":"Unternehmerverzeichnis!B23","v":"Lernende"},null,{"$f":"SUM(Auswertung!D19)","v":{"v":0.05,"d":"5%"}},{"$f":"IF(Auswertung!E19>0,Auswertung!E19,\" \")","v":" "},{"$nulls":12},{"$f":"IF(AND(L$15=\"Dienstleistung\",Q$58<(U19+0.01)),1,\" \")","v":" "},null,0,{"v":10000,"d":"10,000"}]
[null,"Total",null,{"$f":"SUM(D16:D19)","v":{"v":0.95,"d":"95%"}},{"$nulls":13},{"$f":"IF(AND(L$15=\"Dienstleistung\",Q$58>T20,Q$58<(U20+0.01)),2,\" \")","v":" "},null,{"v":10000,"d":"10,000"},{"v":50000,"d":"50,000"}]
[{"$nulls":9},"Eignungs-","Bewertung der Zuschlagskriterien:",{"$nulls":6},{"$f":"IF(AND(L$15=\"Dienstleistung\",Q$58>T21,Q$58<(U21+0.01)),3,\" \")","v":" "},null,{"v":50000,"d":"50,000"},{"v":150000,"d":"150,000"}]
[{"$nulls":9},"kriterien",{"$f":"Unternehmerverzeichnis!B20","v":"Preis"},{"$f":"Unternehmerverzeichnis!B21","v":"Qualität"},{"$f":"Unternehmerverzeichnis!B22","v":"Termin "},{"$f":"Unternehmerverzeichnis!B23","v":"Lernende"},{"$nulls":3},{"$f":"IF(AND(L$15=\"Dienstleistung\",Q$58>T22,Q$58<(U22+0.01)),4,\" \")","v":" "},null,{"v":150000,"d":"150,000"},{"v":250000,"d":"250,000"}]
[null,"Rang","Anbieter Name",null,"PLZ","Geschäftsdomizil",null,"Eingabesumme\nlt. Protokoll","kontrollierte\nNettosumme","erfüllt\nj  / n","Gew.\nPkt.","Gew.\nPkt.","Gew.\nPkt.","Gew.\nPkt.","Total\nPunkte","Bemerkungen",null,{"$f":"IF(AND(L$15=\"Dienstleistung\",Q$58>T23),5,\" \")","v":" "},null,{"v":250000,"d":"> 250,000"}]
[null,1,{"$f":"IF(Unternehmerverzeichnis!C$28>0,Unternehmerverzeichnis!$C$28,\" \")","v":" "},null,{"$f":"IF(Unternehmerverzeichnis!F$28>0,Unternehmerverzeichnis!F$28,\" \")","v":" "},{"$f":"IF(Unternehmerverzeichnis!G$28>0,Unternehmerverzeichnis!G$28,\" \")","v":" "},null,null,{"$f":"IF(Auswertung!K$24>0,Auswertung!K$24,\" \")","v":" "},null,{"$f":"IF(Auswertung!M$24>0,Auswertung!M$24,\" \")","v":" "},{"$f":"IF(OR(Auswertung!O$24=0,Auswertung!O$24>0),Auswertung!O$24,\" \")","v":" "},{"$f":"IF(OR(Auswertung!Q$24=0,Auswertung!Q$24>0),Auswertung!Q$24,\" \")","v":" "},{"$f":"IF(OR(Auswertung!T$24>0,Auswertung!T$24=0),Auswertung!T$24,\" \")","v":" "},{"$f":"SUM(K24:N24)","v":{"v":0,"d":"0.000"}}]
[null,2,{"$f":"IF(Unternehmerverzeichnis!C$29>0,Unternehmerverzeichnis!$C$29,\" \")","v":" "},null,{"$f":"IF(Unternehmerverzeichnis!F$29>0,Unternehmerverzeichnis!F$29,\" \")","v":" "},{"$f":"IF(Unternehmerverzeichnis!G$29>0,Unternehmerverzeichnis!G$29,\" \")","v":" "},null,null,{"$f":"IF(Auswertung!K$25>0,Auswertung!K$25,\" \")","v":" "},null,{"$f":"IF(Auswertung!M$25>0,Auswertung!M$25,\" \")","v":" "},{"$f":"IF(OR(Auswertung!O$25=0,Auswertung!O$25>0),Auswertung!O$25,\" \")","v":" "},{"$f":"IF(OR(Auswertung!Q$25=0,Auswertung!Q$25>0),Auswertung!Q$25,\" \")","v":" "},{"$f":"IF(OR(Auswertung!T$25>0,Auswertung!T$25=0),Auswertung!T$25,\" \")","v":" "},{"v":0,"d":"0.000"},null,null,"Baunebengewerbe"]
[null,3,{"$f":"IF(Unternehmerverzeichnis!C$30>0,Unternehmerverzeichnis!$C$30,\" \")","v":" "},null,{"$f":"IF(Unternehmerverzeichnis!F$30>0,Unternehmerverzeichnis!F$30,\" \")","v":" "},{"$f":"IF(Unternehmerverzeichnis!G$30>0,Unternehmerverzeichnis!G$30,\" \")","v":" "},null,null,{"$f":"IF(Auswertung!K$26>0,Auswertung!K$26,\" \")","v":" "},null,{"$f":"IF(Auswertung!M$26>0,Auswertung!M$26,\" \")","v":" "},{"$f":"IF(OR(Auswertung!O$26=0,Auswertung!O$26>0),Auswertung!O$26,\" \")","v":" "},{"$f":"IF(OR(Auswertung!Q$26=0,Auswertung!Q$26>0),Auswertung!Q$26,\" \")","v":" "},{"$f":"IF(OR(Auswertung!T$26>0,Auswertung!T$26=0),Auswertung!T$26,\" \")","v":" "},{"v":0,"d":"0.000"},null,null,{"$f":"IF(AND(L$15=\"Bau\",N$15=\"Baunebengewerbe\",Q$58<(U26+0.01)),1,\" \")","v":" "},null,0,{"v":50000,"d":"50,000"}]
[null,4,{"$f":"IF(Unternehmerverzeichnis!C$31>0,Unternehmerverzeichnis!$C$31,\" \")","v":" "},null,{"$f":"IF(Unternehmerverzeichnis!F$31>0,Unternehmerverzeichnis!F$31,\" \")","v":" "},{"$f":"IF(Unternehmerverzeichnis!G$31>0,Unternehmerverzeichnis!G$31,\" \")","v":" "},null,null,{"$f":"IF(Auswertung!K$27>0,Auswertung!K$27,\" \")","v":" "},null,{"$f":"IF(Auswertung!M$27>0,Auswertung!M$27,\" \")","v":" "},{"$f":"IF(OR(Auswertung!O$27=0,Auswertung!O$27>0),Auswertung!O$27,\" \")","v":" "},{"$f":"IF(OR(Auswertung!Q$27=0,Auswertung!Q$27>0),Auswertung!Q$27,\" \")","v":" "},{"$f":"IF(OR(Auswertung!T$27>0,Auswertung!T$27=0),Auswertung!T$27,\" \")","v":" "},{"v":0,"d":"0.000"},null,null,{"$f":"IF(AND(L$15=\"Bau\",N$15=\"Baunebengewerbe\",Q$58>T27,Q$58<(U27+0.01)),2,\" \")","v":" "},null,{"v":50000,"d":"50,000"},{"v":100000,"d":"100,000"}]
[null,5,{"$f":"IF(Unternehmerverzeichnis!C$32>0,Unternehmerverzeichnis!$C$32,\" \")","v":" "},null,{"$f":"IF(Unternehmerverzeichnis!F$32>0,Unternehmerverzeichnis!F$32,\" \")","v":" "},{"$f":"IF(Unternehmerverzeichnis!G$32>0,Unternehmerverzeichnis!G$32,\" \")","v":" "},null,null,{"$f":"IF(Auswertung!K$28>0,Auswertung!K$28,\" \")","v":" "},null,{"$f":"IF(Auswertung!M$28>0,Auswertung!M$28,\" \")","v":" "},{"$f":"IF(OR(Auswertung!O$28=0,Auswertung!O$28>0),Auswertung!O$28,\" \")","v":" "},{"$f":"IF(OR(Auswertung!Q$28=0,Auswertung!Q$28>0),Auswertung!Q$28,\" \")","v":" "},{"$f":"IF(OR(Auswertung!T$28>0,Auswertung!T$28=0),Auswertung!T$28,\" \")","v":" "},{"v":0,"d":"0.000"},null,null,{"$f":"IF(AND(L$15=\"Bau\",N$15=\"Baunebengewerbe\",Q$58>T28,Q$58<(U28+0.01)),3,\" \")","v":" "},null,{"v":100000,"d":"100,000"},{"v":150000,"d":"150,000"}]
[null,6,{"$f":"IF(Unternehmerverzeichnis!C$33>0,Unternehmerverzeichnis!$C$33,\" \")","v":" "},null,{"$f":"IF(Unternehmerverzeichnis!F$33>0,Unternehmerverzeichnis!F$33,\" \")","v":" "},{"$f":"IF(Unternehmerverzeichnis!G$33>0,Unternehmerverzeichnis!G$33,\" \")","v":" "},null,null,{"$f":"IF(Auswertung!K$29>0,Auswertung!K$29,\" \")","v":" "},null,{"$f":"IF(Auswertung!M$29>0,Auswertung!M$29,\" \")","v":" "},{"$f":"IF(OR(Auswertung!O$29=0,Auswertung!O$29>0),Auswertung!O$29,\" \")","v":" "},{"$f":"IF(OR(Auswertung!Q$29=0,Auswertung!Q$29>0),Auswertung!Q$29,\" \")","v":" "},{"$f":"IF(OR(Auswertung!T$29>0,Auswertung!T$29=0),Auswertung!T$29,\" \")","v":" "},{"v":0,"d":"0.000"},null,null,{"$f":"IF(AND(L$15=\"Bau\",N$15=\"Baunebengewerbe\",Q$58>T29,Q$58<(U29+0.01)),4,\" \")","v":" "},null,{"v":150000,"d":"150,000"},{"v":250000,"d":"250,000"}]
[null,7,{"$f":"IF(Unternehmerverzeichnis!C$34>0,Unternehmerverzeichnis!$C$34,\" \")","v":" "},null,{"$f":"IF(Unternehmerverzeichnis!F$34>0,Unternehmerverzeichnis!F$34,\" \")","v":" "},{"$f":"IF(Unternehmerverzeichnis!G$34>0,Unternehmerverzeichnis!G$34,\" \")","v":" "},null,null,{"$f":"IF(Auswertung!K$30>0,Auswertung!K$30,\" \")","v":" "},null,{"$f":"IF(Auswertung!M$30>0,Auswertung!M$30,\" \")","v":" "},{"$f":"IF(OR(Auswertung!O$30=0,Auswertung!O$30>0),Auswertung!O$30,\" \")","v":" "},{"$f":"IF(OR(Auswertung!Q$30=0,Auswertung!Q$30>0),Auswertung!Q$30,\" \")","v":" "},{"$f":"IF(OR(Auswertung!T$30>0,Auswertung!T$30=0),Auswertung!T$30,\" \")","v":" "},{"v":0,"d":"0.000"},null,null,{"$f":"IF(AND(L$15=\"Bau\",N$15=\"Baunebengewerbe\",Q$58>T30),5,\" \")","v":" "},null,{"v":250000,"d":"> 250,000"}]
[null,8,{"$f":"IF(Unternehmerverzeichnis!C$35>0,Unternehmerverzeichnis!$C$35,\" \")","v":" "},null,{"$f":"IF(Unternehmerverzeichnis!F$35>0,Unternehmerverzeichnis!F$35,\" \")","v":" "},{"$f":"IF(Unternehmerverzeichnis!G$35>0,Unternehmerverzeichnis!G$35,\" \")","v":" "},null,null,{"$f":"IF(Auswertung!K$31>0,Auswertung!K$31,\" \")","v":" "},null,{"$f":"IF(Auswertung!M$31>0,Auswertung!M$31,\" \")","v":" "},{"$f":"IF(OR(Auswertung!O$31=0,Auswertung!O$31>0),Auswertung!O$31,\" \")","v":" "},{"$f":"IF(OR(Auswertung!Q$31=0,Auswertung!Q$31>0),Auswertung!Q$31,\" \")","v":" "},{"$f":"IF(OR(Auswertung!T$31>0,Auswertung!T$31=0),Auswertung!T$31,\" \")","v":" "},{"v":0,"d":"0.000"}]
[null,9,{"$f":"IF(Unternehmerverzeichnis!C$36>0,Unternehmerverzeichnis!$C$36,\" \")","v":" "},null,{"$f":"IF(Unternehmerverzeichnis!F$36>0,Unternehmerverzeichnis!F$36,\" \")","v":" "},{"$f":"IF(Unternehmerverzeichnis!G$36>0,Unternehmerverzeichnis!G$36,\" \")","v":" "},null,null,{"$f":"IF(Auswertung!K$32>0,Auswertung!K$32,\" \")","v":" "},null,{"$f":"IF(Auswertung!M$32>0,Auswertung!M$32,\" \")","v":" "},{"$f":"IF(OR(Auswertung!O$32=0,Auswertung!O$32>0),Auswertung!O$32,\" \")","v":" "},{"$f":"IF(OR(Auswertung!Q$32=0,Auswertung!Q$32>0),Auswertung!Q$32,\" \")","v":" "},{"$f":"IF(OR(Auswertung!T$32>0,Auswertung!T$32=0),Auswertung!T$32,\" \")","v":" "},{"v":0,"d":"0.000"},null,null,"Bauhauptgewerbe"]
[null,10,{"$f":"IF(Unternehmerverzeichnis!C$37>0,Unternehmerverzeichnis!$C$37,\" \")","v":" "},null,{"$f":"IF(Unternehmerverzeichnis!F$37>0,Unternehmerverzeichnis!F$37,\" \")","v":" "},{"$f":"IF(Unternehmerverzeichnis!G$37>0,Unternehmerverzeichnis!G$37,\" \")","v":" "},null,null,{"$f":"IF(Auswertung!K$33>0,Auswertung!K$33,\" \")","v":" "},null,{"$f":"IF(Auswertung!M$33>0,Auswertung!M$33,\" \")","v":" "},{"$f":"IF(OR(Auswertung!O$33=0,Auswertung!O$33>0),Auswertung!O$33,\" \")","v":" "},{"$f":"IF(OR(Auswertung!Q$33=0,Auswertung!Q$33>0),Auswertung!Q$33,\" \")","v":" "},{"$f":"IF(OR(Auswertung!T$33>0,Auswertung!T$33=0),Auswertung!T$33,\" \")","v":" "},{"v":0,"d":"0.000"},null,null,{"$f":"IF(AND(L$15=\"Bau\",N$15=\"Bauhauptgewerbe\",Q$58<(U33+0.01)),1,\" \")","v":1},null,0,{"v":50000,"d":"50,000"}]
[null,11,{"$f":"IF(Unternehmerverzeichnis!C$38>0,Unternehmerverzeichnis!$C$38,\" \")","v":" "},null,{"$f":"IF(Unternehmerverzeichnis!F$38>0,Unternehmerverzeichnis!F$38,\" \")","v":" "},{"$f":"IF(Unternehmerverzeichnis!G$38>0,Unternehmerverzeichnis!G$38,\" \")","v":" "},null,null,{"$f":"IF(Auswertung!K$34>0,Auswertung!K$34,\" \")","v":" "},null,{"$f":"IF(Auswertung!M$34>0,Auswertung!M$34,\" \")","v":" "},{"$f":"IF(OR(Auswertung!O$34=0,Auswertung!O$34>0),Auswertung!O$34,\" \")","v":" "},{"$f":"IF(OR(Auswertung!Q$34=0,Auswertung!Q$34>0),Auswertung!Q$34,\" \")","v":" "},{"$f":"IF(OR(Auswertung!T$34>0,Auswertung!T$34=0),Auswertung!T$34,\" \")","v":" "},{"v":0,"d":"0.000"},null,null,{"$f":"IF(AND(L$15=\"Bau\",N$15=\"Bauhauptgewerbe\",Q$58>T34,Q$58<(U34+0.01)),2,\" \")","v":" "},null,{"v":50000,"d":"50,000"},{"v":100000,"d":"100,000"}]
[null,12,{"$f":"IF(Unternehmerverzeichnis!C$39>0,Unternehmerverzeichnis!$C$39,\" \")","v":" "},null,{"$f":"IF(Unternehmerverzeichnis!F$39>0,Unternehmerverzeichnis!F$39,\" \")","v":" "},{"$f":"IF(Unternehmerverzeichnis!G$39>0,Unternehmerverzeichnis!G$39,\" \")","v":" "},null,null,{"$f":"IF(Auswertung!K$35>0,Auswertung!K$35,\" \")","v":" "},null,{"$f":"IF(Auswertung!M$35>0,Auswertung!M$35,\" \")","v":" "},{"$f":"IF(OR(Auswertung!O$35=0,Auswertung!O$35>0),Auswertung!O$35,\" \")","v":" "},{"$f":"IF(OR(Auswertung!Q$35=0,Auswertung!Q$35>0),Auswertung!Q$35,\" \")","v":" "},{"$f":"IF(OR(Auswertung!T$35>0,Auswertung!T$35=0),Auswertung!T$35,\" \")","v":" "},{"v":0,"d":"0.000"},null,null,{"$f":"IF(AND(L$15=\"Bau\",N$15=\"Bauhauptgewerbe\",Q$58>T35,Q$58<(U35+0.01)),3,\" \")","v":" "},null,{"v":100000,"d":"100,000"},{"v":300000,"d":"300,000"}]
[null,13,{"$f":"IF(Unternehmerverzeichnis!C$40>0,Unternehmerverzeichnis!$C$40,\" \")","v":" "},null,{"$f":"IF(Unternehmerverzeichnis!F$40>0,Unternehmerverzeichnis!F$40,\" \")","v":" "},{"$f":"IF(Unternehmerverzeichnis!G$40>0,Unternehmerverzeichnis!G$40,\" \")","v":" "},null,null,{"$f":"IF(Auswertung!K$36>0,Auswertung!K$36,\" \")","v":" "},null,{"$f":"IF(Auswertung!M$36>0,Auswertung!M$36,\" \")","v":" "},{"$f":"IF(OR(Auswertung!O$36=0,Auswertung!O$36>0),Auswertung!O$36,\" \")","v":" "},{"$f":"IF(OR(Auswertung!Q$36=0,Auswertung!Q$36>0),Auswertung!Q$36,\" \")","v":" "},{"$f":"IF(OR(Auswertung!T$36>0,Auswertung!T$36=0),Auswertung!T$36,\" \")","v":" "},{"v":0,"d":"0.000"},null,null,{"$f":"IF(AND(L$15=\"Bau\",N$15=\"Bauhauptgewerbe\",Q$58>T36,Q$58<(U36+0.01)),4,\" \")","v":" "},null,{"v":300000,"d":"300,000"},{"v":500000,"d":"500,000"}]
[null,14,{"$f":"IF(Unternehmerverzeichnis!C$41>0,Unternehmerverzeichnis!$C$41,\" \")","v":" "},null,{"$f":"IF(Unternehmerverzeichnis!F$41>0,Unternehmerverzeichnis!F$41,\" \")","v":" "},{"$f":"IF(Unternehmerverzeichnis!G$41>0,Unternehmerverzeichnis!G$41,\" \")","v":" "},null,null,{"$f":"IF(Auswertung!K$37>0,Auswertung!K$37,\" \")","v":" "},null,{"$f":"IF(Auswertung!M$37>0,Auswertung!M$37,\" \")","v":" "},{"$f":"IF(OR(Auswertung!O$37=0,Auswertung!O$37>0),Auswertung!O$37,\" \")","v":" "},{"$f":"IF(OR(Auswertung!Q$37=0,Auswertung!Q$37>0),Auswertung!Q$37,\" \")","v":" "},{"$f":"IF(OR(Auswertung!T$37>0,Auswertung!T$37=0),Auswertung!T$37,\" \")","v":" "},{"v":0,"d":"0.000"},null,null,{"$f":"IF(AND(L$15=\"Bau\",N$15=\"Bauhauptgewerbe\",Q$58>T37),5,\" \")","v":" "},null,{"v":500000,"d":"> 500,000"}]
[null,15,{"$f":"IF(Unternehmerverzeichnis!C$42>0,Unternehmerverzeichnis!$C$42,\" \")","v":" "},null,{"$f":"IF(Unternehmerverzeichnis!F$42>0,Unternehmerverzeichnis!F$42,\" \")","v":" "},{"$f":"IF(Unternehmerverzeichnis!G$42>0,Unternehmerverzeichnis!G$42,\" \")","v":" "},null,null,{"$f":"IF(Auswertung!K$38>0,Auswertung!K$38,\" \")","v":" "},null,{"$f":"IF(Auswertung!M$38>0,Auswertung!M$38,\" \")","v":" "},{"$f":"IF(OR(Auswertung!O$38=0,Auswertung!O$38>0),Auswertung!O$38,\" \")","v":" "},{"$f":"IF(OR(Auswertung!Q$38=0,Auswertung!Q$38>0),Auswertung!Q$38,\" \")","v":" "},{"$f":"IF(OR(Auswertung!T$38>0,Auswertung!T$38=0),Auswertung!T$38,\" \")","v":" "},{"v":0,"d":"0.000"}]
[null,16,{"$f":"IF(Unternehmerverzeichnis!C$43>0,Unternehmerverzeichnis!$C$43,\" \")","v":" "},null,{"$f":"IF(Unternehmerverzeichnis!F$43>0,Unternehmerverzeichnis!F$43,\" \")","v":" "},{"$f":"IF(Unternehmerverzeichnis!G$43>0,Unternehmerverzeichnis!G$43,\" \")","v":" "},null,null,{"$f":"IF(Auswertung!K$39>0,Auswertung!K$39,\" \")","v":" "},null,{"$f":"IF(Auswertung!M$39>0,Auswertung!M$39,\" \")","v":" "},{"$f":"IF(OR(Auswertung!O$39=0,Auswertung!O$39>0),Auswertung!O$39,\" \")","v":" "},{"$f":"IF(OR(Auswertung!Q$39=0,Auswertung!Q$39>0),Auswertung!Q$39,\" \")","v":" "},{"$f":"IF(OR(Auswertung!T$39>0,Auswertung!T$39=0),Auswertung!T$39,\" \")","v":" "},{"v":0,"d":"0.000"},null,null,"Lieferungen"]
[null,17,{"$f":"IF(Unternehmerverzeichnis!C$44>0,Unternehmerverzeichnis!$C$44,\" \")","v":" "},null,{"$f":"IF(Unternehmerverzeichnis!F$44>0,Unternehmerverzeichnis!F$44,\" \")","v":" "},{"$f":"IF(Unternehmerverzeichnis!G$44>0,Unternehmerverzeichnis!G$44,\" \")","v":" "},null,null,{"$f":"IF(Auswertung!K$40>0,Auswertung!K$40,\" \")","v":" "},null,{"$f":"IF(Auswertung!M$40>0,Auswertung!M$40,\" \")","v":" "},{"$f":"IF(OR(Auswertung!O$40=0,Auswertung!O$40>0),Auswertung!O$40,\" \")","v":" "},{"$f":"IF(OR(Auswertung!Q$40=0,Auswertung!Q$40>0),Auswertung!Q$40,\" \")","v":" "},{"$f":"IF(OR(Auswertung!T$40>0,Auswertung!T$40=0),Auswertung!T$40,\" \")","v":" "},{"v":0,"d":"0.000"},null,null,{"$f":"IF(AND(L$15=\"Lieferung\",Q$58<(U40+0.01)),1,\" \")","v":" "},null,0,{"v":50000,"d":"50,000"}]
[null,18,{"$f":"IF(Unternehmerverzeichnis!C$45>0,Unternehmerverzeichnis!$C$45,\" \")","v":" "},null,{"$f":"IF(Unternehmerverzeichnis!F$45>0,Unternehmerverzeichnis!F$45,\" \")","v":" "},{"$f":"IF(Unternehmerverzeichnis!G$45>0,Unternehmerverzeichnis!G$45,\" \")","v":" "},null,null,{"$f":"IF(Auswertung!K$41>0,Auswertung!K$41,\" \")","v":" "},null,{"$f":"IF(Auswertung!M$41>0,Auswertung!M$41,\" \")","v":" "},{"$f":"IF(OR(Auswertung!O$41=0,Auswertung!O$41>0),Auswertung!O$41,\" \")","v":" "},{"$f":"IF(OR(Auswertung!Q$41=0,Auswertung!Q$41>0),Auswertung!Q$41,\" \")","v":" "},{"$f":"IF(OR(Auswertung!T$41>0,Auswertung!T$41=0),Auswertung!T$41,\" \")","v":" "},{"v":0,"d":"0.000"},null,null,{"$f":"IF(AND(L$15=\"Lieferung\",Q$58>T41,Q$58<(U41+0.01)),2,\" \")","v":" "},null,{"v":50000,"d":"50,000"},{"v":70000,"d":"70,000"}]
[null,19,{"$f":"IF(Unternehmerverzeichnis!C$46>0,Unternehmerverzeichnis!$C$46,\" \")","v":" "},null,{"$f":"IF(Unternehmerverzeichnis!F$46>0,Unternehmerverzeichnis!F$46,\" \")","v":" "},{"$f":"IF(Unternehmerverzeichnis!G$46>0,Unternehmerverzeichnis!G$46,\" \")","v":" "},null,null,{"$f":"IF(Auswertung!K$42>0,Auswertung!K$42,\" \")","v":" "},null,{"$f":"IF(Auswertung!M$42>0,Auswertung!M$42,\" \")","v":" "},{"$f":"IF(OR(Auswertung!O$42=0,Auswertung!O$42>0),Auswertung!O$42,\" \")","v":" "},{"$f":"IF(OR(Auswertung!Q$42=0,Auswertung!Q$42>0),Auswertung!Q$42,\" \")","v":" "},{"$f":"IF(OR(Auswertung!T$42>0,Auswertung!T$42=0),Auswertung!T$42,\" \")","v":" "},{"v":0,"d":"0.000"},null,null,{"$f":"IF(AND(L$15=\"Lieferung\",Q$58>T42,Q$58<(U42+0.01)),3,\" \")","v":" "},null,{"v":70000,"d":"70,000"},{"v":100000,"d":"100,000"}]
[null,20,{"$f":"IF(Unternehmerverzeichnis!C$47>0,Unternehmerverzeichnis!$C$47,\" \")","v":" "},null,{"$f":"IF(Unternehmerverzeichnis!F$47>0,Unternehmerverzeichnis!F$47,\" \")","v":" "},{"$f":"IF(Unternehmerverzeichnis!G$47>0,Unternehmerverzeichnis!G$47,\" \")","v":" "},null,null,{"$f":"IF(Auswertung!K$43>0,Auswertung!K$43,\" \")","v":" "},null,{"$f":"IF(Auswertung!M$43>0,Auswertung!M$43,\" \")","v":" "},{"$f":"IF(OR(Auswertung!O$43=0,Auswertung!O$43>0),Auswertung!O$43,\" \")","v":" "},{"$f":"IF(OR(Auswertung!Q$43=0,Auswertung!Q$43>0),Auswertung!Q$43,\" \")","v":" "},{"$f":"IF(OR(Auswertung!T$43>0,Auswertung!T$43=0),Auswertung!T$43,\" \")","v":" "},{"v":0,"d":"0.000"},null,null,{"$f":"IF(AND(L$15=\"Lieferung\",Q$58>T43,Q$58<(U43+0.01)),4,\" \")","v":" "},null,{"v":100000,"d":"100,000"},{"v":250000,"d":"250,000"}]
[null,21,{"$f":"IF(Unternehmerverzeichnis!C$48>0,Unternehmerverzeichnis!$C$48,\" \")","v":" "},null,{"$f":"IF(Unternehmerverzeichnis!F$48>0,Unternehmerverzeichnis!F$48,\" \")","v":" "},{"$f":"IF(Unternehmerverzeichnis!G$48>0,Unternehmerverzeichnis!G$48,\" \")","v":" "},null,null,{"$f":"IF(Auswertung!K$44>0,Auswertung!K$44,\" \")","v":" "},null,{"$f":"IF(Auswertung!M$44>0,Auswertung!M$44,\" \")","v":" "},{"$f":"IF(OR(Auswertung!O$44=0,Auswertung!O$44>0),Auswertung!O$44,\" \")","v":" "},{"$f":"IF(OR(Auswertung!Q$44=0,Auswertung!Q$44>0),Auswertung!Q$44,\" \")","v":" "},{"$f":"IF(OR(Auswertung!T$44>0,Auswertung!T$44=0),Auswertung!T$44,\" \")","v":" "},{"v":0,"d":"0.000"},null,null,{"$f":"IF(AND(L$15=\"Lieferung\",Q$58>(T44+0.01)),5,\" \")","v":" "},null,{"v":250000,"d":"> 250,000"}]
[null,22,{"$f":"IF(Unternehmerverzeichnis!C$49>0,Unternehmerverzeichnis!$C$49,\" \")","v":" "},null,{"$f":"IF(Unternehmerverzeichnis!F$49>0,Unternehmerverzeichnis!F$49,\" \")","v":" "},{"$f":"IF(Unternehmerverzeichnis!G$49>0,Unternehmerverzeichnis!G$49,\" \")","v":" "},null,null,{"$f":"IF(Auswertung!K$45>0,Auswertung!K$45,\" \")","v":" "},null,{"$f":"IF(Auswertung!M$45>0,Auswertung!M$45,\" \")","v":" "},{"$f":"IF(OR(Auswertung!O$45=0,Auswertung!O$45>0),Auswertung!O$45,\" \")","v":" "},{"$f":"IF(OR(Auswertung!Q$45=0,Auswertung!Q$45>0),Auswertung!Q$45,\" \")","v":" "},{"$f":"IF(OR(Auswertung!T$45>0,Auswertung!T$45=0),Auswertung!T$45,\" \")","v":" "},{"v":0,"d":"0.000"}]
[null,23,{"$f":"IF(Unternehmerverzeichnis!C$50>0,Unternehmerverzeichnis!$C$50,\" \")","v":" "},null,{"$f":"IF(Unternehmerverzeichnis!F$50>0,Unternehmerverzeichnis!F$50,\" \")","v":" "},{"$f":"IF(Unternehmerverzeichnis!G$50>0,Unternehmerverzeichnis!G$50,\" \")","v":" "},null,null,{"$f":"IF(Auswertung!K$46>0,Auswertung!K$46,\" \")","v":" "},null,{"$f":"IF(Auswertung!M$46>0,Auswertung!M$46,\" \")","v":" "},{"$f":"IF(OR(Auswertung!O$46=0,Auswertung!O$46>0),Auswertung!O$46,\" \")","v":" "},{"$f":"IF(OR(Auswertung!Q$46=0,Auswertung!Q$46>0),Auswertung!Q$46,\" \")","v":" "},{"$f":"IF(OR(Auswertung!T$46>0,Auswertung!T$46=0),Auswertung!T$46,\" \")","v":" "},{"v":0,"d":"0.000"}]
[null,24,{"$f":"IF(Unternehmerverzeichnis!C$51>0,Unternehmerverzeichnis!$C$51,\" \")","v":" "},null,{"$f":"IF(Unternehmerverzeichnis!F$51>0,Unternehmerverzeichnis!F$51,\" \")","v":" "},{"$f":"IF(Unternehmerverzeichnis!G$51>0,Unternehmerverzeichnis!G$51,\" \")","v":" "},null,null,{"$f":"IF(Auswertung!K$47>0,Auswertung!K$47,\" \")","v":" "},null,{"$f":"IF(Auswertung!M$47>0,Auswertung!M$47,\" \")","v":" "},{"$f":"IF(OR(Auswertung!O$47=0,Auswertung!O$47>0),Auswertung!O$47,\" \")","v":" "},{"$f":"IF(OR(Auswertung!Q$47=0,Auswertung!Q$47>0),Auswertung!Q$47,\" \")","v":" "},{"$f":"IF(OR(Auswertung!T$47>0,Auswertung!T$47=0),Auswertung!T$47,\" \")","v":" "},{"v":0,"d":"0.000"}]
[null,25,{"$f":"IF(Unternehmerverzeichnis!C$52>0,Unternehmerverzeichnis!$C$52,\" \")","v":" "},null,{"$f":"IF(Unternehmerverzeichnis!F$52>0,Unternehmerverzeichnis!F$52,\" \")","v":" "},{"$f":"IF(Unternehmerverzeichnis!G$52>0,Unternehmerverzeichnis!G$52,\" \")","v":" "},null,null,{"$f":"IF(Auswertung!K$48>0,Auswertung!K$48,\" \")","v":" "},null,{"$f":"IF(Auswertung!M$48>0,Auswertung!M$48,\" \")","v":" "},{"$f":"IF(OR(Auswertung!O$48=0,Auswertung!O$48>0),Auswertung!O$48,\" \")","v":" "},{"$f":"IF(OR(Auswertung!Q$48=0,Auswertung!Q$48>0),Auswertung!Q$48,\" \")","v":" "},{"$f":"IF(OR(Auswertung!T$48>0,Auswertung!T$48=0),Auswertung!T$48,\" \")","v":" "},{"v":0,"d":"0.000"}]
[null,26,{"$f":"IF(Unternehmerverzeichnis!C$53>0,Unternehmerverzeichnis!$C$53,\" \")","v":" "},null,{"$f":"IF(Unternehmerverzeichnis!F$53>0,Unternehmerverzeichnis!F$53,\" \")","v":" "},{"$f":"IF(Unternehmerverzeichnis!G$53>0,Unternehmerverzeichnis!G$53,\" \")","v":" "},null,null,{"$f":"IF(Auswertung!K$49>0,Auswertung!K$49,\" \")","v":" "},null,{"$f":"IF(Auswertung!M$49>0,Auswertung!M$49,\" \")","v":" "},{"$f":"IF(OR(Auswertung!O$49=0,Auswertung!O$49>0),Auswertung!O$49,\" \")","v":" "},{"$f":"IF(OR(Auswertung!Q$49=0,Auswertung!Q$49>0),Auswertung!Q$49,\" \")","v":" "},{"$f":"IF(OR(Auswertung!T$49>0,Auswertung!T$49=0),Auswertung!T$49,\" \")","v":" "},{"v":0,"d":"0.000"}]
[null,27,{"$f":"IF(Unternehmerverzeichnis!C$54>0,Unternehmerverzeichnis!$C$54,\" \")","v":" "},null,{"$f":"IF(Unternehmerverzeichnis!F$54>0,Unternehmerverzeichnis!F$54,\" \")","v":" "},{"$f":"IF(Unternehmerverzeichnis!G$54>0,Unternehmerverzeichnis!G$54,\" \")","v":" "},null,null,{"$f":"IF(Auswertung!K$50>0,Auswertung!K$50,\" \")","v":" "},null,{"$f":"IF(Auswertung!M$50>0,Auswertung!M$50,\" \")","v":" "},{"$f":"IF(OR(Auswertung!O$50=0,Auswertung!O$50>0),Auswertung!O$50,\" \")","v":" "},{"$f":"IF(OR(Auswertung!Q$50=0,Auswertung!Q$50>0),Auswertung!Q$50,\" \")","v":" "},{"$f":"IF(OR(Auswertung!T$50>0,Auswertung!T$50=0),Auswertung!T$50,\" \")","v":" "},{"v":0,"d":"0.000"}]
[null,28,{"$f":"IF(Unternehmerverzeichnis!C$55>0,Unternehmerverzeichnis!$C$55,\" \")","v":" "},null,{"$f":"IF(Unternehmerverzeichnis!F$55>0,Unternehmerverzeichnis!F$55,\" \")","v":" "},{"$f":"IF(Unternehmerverzeichnis!G$55>0,Unternehmerverzeichnis!G$55,\" \")","v":" "},null,null,{"$f":"IF(Auswertung!K$51>0,Auswertung!K$51,\" \")","v":" "},null,{"$f":"IF(Auswertung!M$51>0,Auswertung!M$51,\" \")","v":" "},{"$f":"IF(OR(Auswertung!O$51=0,Auswertung!O$51>0),Auswertung!O$51,\" \")","v":" "},{"$f":"IF(OR(Auswertung!Q$51=0,Auswertung!Q$51>0),Auswertung!Q$51,\" \")","v":" "},{"$f":"IF(OR(Auswertung!T$51>0,Auswertung!T$51=0),Auswertung!T$51,\" \")","v":" "},{"v":0,"d":"0.000"}]
[null,29,{"$f":"IF(Unternehmerverzeichnis!C$56>0,Unternehmerverzeichnis!$C$56,\" \")","v":" "},null,{"$f":"IF(Unternehmerverzeichnis!F$56>0,Unternehmerverzeichnis!F$56,\" \")","v":" "},{"$f":"IF(Unternehmerverzeichnis!G$56>0,Unternehmerverzeichnis!G$56,\" \")","v":" "},null,null,{"$f":"IF(Auswertung!K$52>0,Auswertung!K$52,\" \")","v":" "},null,{"$f":"IF(Auswertung!M$52>0,Auswertung!M$52,\" \")","v":" "},{"$f":"IF(OR(Auswertung!O$52=0,Auswertung!O$52>0),Auswertung!O$52,\" \")","v":" "},{"$f":"IF(OR(Auswertung!Q$52=0,Auswertung!Q$52>0),Auswertung!Q$52,\" \")","v":" "},{"$f":"IF(OR(Auswertung!T$52>0,Auswertung!T$52=0),Auswertung!T$52,\" \")","v":" "},{"v":0,"d":"0.000"}]
[null,30,{"$f":"IF(Unternehmerverzeichnis!C$57>0,Unternehmerverzeichnis!$C$57,\" \")","v":" "},null,{"$f":"IF(Unternehmerverzeichnis!F$57>0,Unternehmerverzeichnis!F$57,\" \")","v":" "},{"$f":"IF(Unternehmerverzeichnis!G$57>0,Unternehmerverzeichnis!G$57,\" \")","v":" "},null,null,{"$f":"IF(Auswertung!K$53>0,Auswertung!K$53,\" \")","v":" "},null,{"$f":"IF(Auswertung!M$53>0,Auswertung!M$53,\" \")","v":" "},{"$f":"IF(OR(Auswertung!O$53=0,Auswertung!O$53>0),Auswertung!O$53,\" \")","v":" "},{"$f":"IF(OR(Auswertung!Q$53=0,Auswertung!Q$53>0),Auswertung!Q$53,\" \")","v":" "},{"$f":"IF(OR(Auswertung!T$53>0,Auswertung!T$53=0),Auswertung!T$53,\" \")","v":" "},{"v":0,"d":"0.000"}]
[]
[null,"Kostenvoranschlag",{"$nulls":5},"Zuschlagsantrag",null,"Vergabekompetenz:",{"$nulls":3},"Zuschlagsbetrag"]
[null,"KV original",{"$nulls":3},{"$f":"SUM(Unternehmerverzeichnis!H19)","v":{"v":0,"d":" Fr. 0.00 "}},null,"Firma",{"$nulls":5},"kontrollierte Nettosumme"]
[null,"KV revidiert",{"$nulls":5},"Begründung:","Die Anbieterin erfüllt die Eignungskriterien. Die Vergabe des Auftrages erfolgt an die Firma xy, Ort, die das vorteilhafteste Angebot eingereicht hat. Die Firma xy hat die meisten Punkte für die vorgegebenen Zuschlags-kriterien Preis, Qualität, Termin und Lernende erhalten. Beim Zuschlagskriterium Preis erreichte sie im Vergleich zu den anderen Anbieterinnen die höchste / die zweithöchste / … Punktezahl, beim Zuschlagskriterium Qualität die höchste / die zweithöchste / … Punktezahl, beim Zuschlagskriterium Termin die höchste / die zweithöchste / … Punktezahl und beim Zuschlagskriterium Lernende die höchste / die zweithöchste / … Punktezahl.",{"$nulls":4},"Regie, Annahme Bauleitung:"]
[null,"Umlagerung aus BKP Nr.",{"$nulls":11},"Betrag Total",null,null,{"$f":"SUM(Q56:Q57)","v":{"v":0,"d":" Fr. 0.00 "}}]
[{"$nulls":13},"Visum/Datum Planer"]
[{"$nulls":13},"Visum/Datum PL"]
[null,"Kostenvoranschlag aktuell",{"$nulls":3},{"$f":"SUM(F57:G60)","v":{"v":0,"d":" Fr. 0.00 "}},{"$nulls":7},"Visum/Datum TL*\nVisum/Datum AL*\nVisum/Datum KB*\n\n\n\n\n*gemäss Kompetenzregelung"]
[]
[null,"Versand der Zuschlagsverfügung am:",{"$nulls":5},"durch:",{"$nulls":5},"sortieren:","  Daten/sortieren/absteigend/Spalte N"]

{"sheet":"Bewertung","index":4,"n_rows":47,"n_cols":29,"rows_kept":47}
{"$rows_empty":8}
[null,"Bewertungsraster der Angebotskriterien"]
[null,"Die Gewichtung ist aufgaben- und projektbezogen zu definieren. Abweichungen von den Standardvorgaben sind fallweise festzulegen"]
[]
[null,"Preis ",{"$nulls":26},"Gewichtung 40% bis 60%"]
[null,"Bereinigter Netto-Angebotspreis / Preis der Optionen / Betriebs- und Unterhaltskosten (Service, Wartung, Energie, Folgekosten) / Life-Cycle Kosten"]
[null,"Kriterium nicht beurteilbar / keine Angaben des Unternehmers",{"$nulls":26},0]
[null,"Angebotspreise die das 1.5-fache oder mehr vom günstigsten Angebotspreis abweichen.",{"$nulls":26},1]
[null,"Angebotspreise im Verhältnis vom günstigsten Preis bis zum 1.5-fachen des günstigsten Preises, linear auf 3-Stellen nach dem Komma berechnet",{"$nulls":26},"< 5 bis > 1"]
[null,"Angebot mit dem günstigsten Preis",{"$nulls":26},5]
[]
[null,"Qualität ",{"$nulls":26},"Gewichtung 20% bis 30%"]
[null,"Qualität der Materialien, der Ausführung, des vorgeschlagenen Konzepts / Bedienungsfreundlichkeit, Funktionalität / Personal / Infrastruktur / Kundendienst / PQM / "]
[null,"Ökologie-Labels / Umweltverträgliche, gesundheitlich unbedenkliche Materialien und/oder ökologisch einwandfreie Ausführung bzw. umweltschonende Entsorgung"]
[null,"→ Prüfung mittels Referenzen, Muster, Zertifikate, QM-Plan, Besichtigung"]
[null,"Kriterium nicht beurteilbar / keine Angaben des Unternehmers",{"$nulls":26},0]
[null,"sehr schlechte Erfüllung des Kriteriums / ungenügende, unvollständige Angaben",{"$nulls":26},1]
[null,"schlechte Erfüllung des Kriteriums / Angaben ohne ausreichenden Bezug zum Objekt",{"$nulls":26},2]
[null,"normale, duchschnittliche Erfüllung des Kriteriums / durchschnittliche Qualität der Angaben, den Anforderungen der Ausschreibung entsprechend ",{"$nulls":26},3]
[null,"gute Erfüllung des Kriteriums / qualitativ sehr gute Angaben ",{"$nulls":26},4]
[null,"sehr gute Erfüllung des Kriteriums / qualitativ ausgezeichnete Angaben, sehr grosser Beitrag zur Zielerreichung ",{"$nulls":26},5]
[]
[null,"Termin ",{"$nulls":26},"Gewichtung 15% bis 30%"]
[null,"Bautermine und -ablauf / Liefertermine und -fristen / Verfügbarkeit von Personal und Geräte"]
[null,"→ Prüfung mittels Referenzen, Grobbauprogramm, Personal- und Geräteliste"]
[null,"Kriterium nicht beurteilbar / keine Angaben des Unternehmers",{"$nulls":26},0]
[null,"sehr schlechte Erfüllung des Kriteriums / ungenügende, unvollständige Angaben",{"$nulls":26},1]
[null,"schlechte Erfüllung des Kriteriums / Angaben ohne ausreichenden Bezug zum Objekt",{"$nulls":26},2]
[null,"normale, duchschnittliche Erfüllung des Kriteriums / durchschnittliche Qualität der Angaben, den Anforderungen der Ausschreibung entsprechend ",{"$nulls":26},3]
[null,"gute Erfüllung des Kriteriums / qualitativ sehr gute Angaben ",{"$nulls":26},4]
[null,"sehr gute Erfüllung des Kriteriums / qualitativ ausgezeichnete Angaben, sehr grosser Beitrag zur Zielerreichung ",{"$nulls":26},5]
[]
[null,"Lehrlinge",{"$nulls":26},"Gewichtung 5%"]
[null,"Verhältnis Anzahl Lernende zu Anzahl festangestellte Mitarbeiter (100 Stellenprozente) auf 3-Stellen nach dem Komma gerundet"]
[null,"keine Lernende / keine Angaben des Unternehmers",{"$nulls":26},0]
[null,"Verhältnis Lernende zu MA grösser 0 bis kleiner 0.05",{"$nulls":26},1]
[null,"Verhältnis Lernende zu MA gleich oder grösser 0.05 bis kleiner 0.10",{"$nulls":26},2]
[null,"Verhältnis Lernende zu MA gleich oder grösser 0.10 bis kleiner 0.15",{"$nulls":26},3]
[null,"Verhältnis Lernende zu MA gleich oder grösser 0.15 bis kleiner 0.20",{"$nulls":26},4]
[null,"Verhältnis Lernende zu MA gleich oder grösser 0.20",{"$nulls":26},5]